Workbook

Sheet Sensitivity Analysis Tool
A1: This workbook supplements the Congressional Budget Office's September 2019 report Financial Regulation and the Federal Budget.
A2: www.cbo.gov/publication/55586
A5: In its report Financial Regulation and the Federal Budget, CBO analyzes three illustrative polices and finds that the largest budgetary effects of implementing them would stem from macroeconomic feedback. The projections underlying that analysis are highly uncertain because they rely on estimates of probabilities of rare events and on parameters representing how policies might affect outcomes such as bank failures and financial crises. To illustrate the sensitivity of the agency’s projections to selected parameters, CBO has developed this interactive tool, which allows users to choose alternative values for key parameters and see how the resulting projections differ from those in the report.
A6: Parameter | B6: Value | E6: Lower Capital Requirements by 1 Percentage Point | F6: Eliminate Orderly Liquidation Authority | G6: Repeal the Ability-to-Repay Mortgage Rule
A7: General
A8: Likelihood of a Financial Crisis in Any Given Year | D8: Direct Budgetary Effects of the Three Illustrative Policies, 2020 to 2029 (Billions of dollars)
A10: Capital Requirements | D10: Effects on Revenues | E10: =INDEX(change_CR_results!G:G,'Sensitivity Analysis Tool'!C44) -> 0.175 | F10: =INDEX(eliminate_OLA_results!E:E,'Sensitivity Analysis Tool'!C45) -> 5.819 | G10: 0
A11: Policy: Change in Capital Requirements | D11: Effects on Noninterest Outlays | E11: =INDEX(change_CR_results!H:H,'Sensitivity Analysis Tool'!C44) -> -0.058 | F11: =INDEX(eliminate_OLA_results!F:F,'Sensitivity Analysis Tool'!C45) -> 19.505 | G11: =INDEX(repeal_ATR_results!F:F,'Sensitivity Analysis Tool'!C46) -> 0.485
D12: Increase or Decrease (-) in the Deficit | E12: =INDEX(change_CR_results!I:I,'Sensitivity Analysis Tool'!C44) -> -0.233 | F12: =INDEX(eliminate_OLA_results!G:G,'Sensitivity Analysis Tool'!C45) -> 13.686 | G12: =INDEX(repeal_ATR_results!G:G,'Sensitivity Analysis Tool'!C46) -> 0.426
D14: Macroeconomic Feedback Under Baseline Economic Conditions, 2020 to 2029 (Billions of dollars)
A15: Change in Bank Failure Rate for Each Percentage-Point Change in Capital
A17: Change in Deposit Insurance Premium Rate for Each Percentage-Point Change in Capital | D17: Effects on Revenues
D18: From change in financing mix | E18: =INDEX(change_CR_results!K:K,'Sensitivity Analysis Tool'!C44) -> -17.781 | F18: 0 | G18: 0
A19: Effect on Tax Liability of a 1 Percentage-Point Increase in Debt | D19: From increase in gross domestic product | E19: =INDEX(change_CR_results!J:J,'Sensitivity Analysis Tool'!C44) -> 3.703 | F19: 0 | G19: =INDEX(repeal_ATR_results!H:H,'Sensitivity Analysis Tool'!C46) -> 0.717
D20: Total | E20: =INDEX(change_CR_results!L:L,'Sensitivity Analysis Tool'!C44) -> -14.078 | F20: 0 | G20: =G19 -> 0.717
A21: Orderly Liquidation Authority | D21: Effects on Outlays
D22: Noninterest outlays | E22: =INDEX(change_CR_results!M:M,'Sensitivity Analysis Tool'!C44) -> 0.524 | F22: 0 | G22: =INDEX(repeal_ATR_results!I:I,'Sensitivity Analysis Tool'!C46) -> 0
A23: Effect of Orderly Liquidation Authority on Likelihood of a Financial Crisis | D23: Interest outlays | E23: =INDEX(change_CR_results!N:N,'Sensitivity Analysis Tool'!C44) -> -0.872 | F23: 0 | G23: =INDEX(repeal_ATR_results!J:J,'Sensitivity Analysis Tool'!C46) -> 0
D24: Total | E24: =INDEX(change_CR_results!O:O,'Sensitivity Analysis Tool'!C44) -> -0.348 | F24: 0 | G24: =INDEX(repeal_ATR_results!K:K,'Sensitivity Analysis Tool'!C46) -> 0
A25: Percentage of Financial Crises That Would Be More Severe If Orderly Liquidation Authority Was Eliminated | D25: Increase or Decrease (-) in the Deficit | E25: =INDEX(change_CR_results!P:P,'Sensitivity Analysis Tool'!C44) -> 13.729 | F25: 0 | G25: =INDEX(repeal_ATR_results!L:L,'Sensitivity Analysis Tool'!C46) -> -0.717
A27: Ability-to-Repay Rule | D27: Macroeconomic Feedback Stemming From the Illustrative Policies’ Effects on the Likelihood and Severity of Financial Crises, 2020 to 2029 (Billions of dollars)
A29: Change in Bank Failure Rate If the Ability-to-Repay Rule Was Eliminated
D30: Effects on Revenues | E30: =INDEX(change_CR_results!Q:Q,'Sensitivity Analysis Tool'!C44) -> -66.364 | F30: =INDEX(eliminate_OLA_results!O:O,'Sensitivity Analysis Tool'!C45) -> -141.861 | G30: =INDEX(repeal_ATR_results!M:M,'Sensitivity Analysis Tool'!C46) -> -3.318
A31: Effective Tax Rate on Services From Owner-Occupied Housing
D32: Effects on Outlays
D33: Noninterest outlays | E33: =INDEX(change_CR_results!R:R,'Sensitivity Analysis Tool'!C44) -> 1.357 | F33: =INDEX(eliminate_OLA_results!P:P,'Sensitivity Analysis Tool'!C45) -> 7.229 | G33: =INDEX(repeal_ATR_results!N:N,'Sensitivity Analysis Tool'!C46) -> 0.068
D34: Interest outlays | E34: =INDEX(change_CR_results!S:S,'Sensitivity Analysis Tool'!C44) -> -31.267 | F34: =INDEX(eliminate_OLA_results!Q:Q,'Sensitivity Analysis Tool'!C45) -> -21.399 | G34: =INDEX(repeal_ATR_results!O:O,'Sensitivity Analysis Tool'!C46) -> -1.563
D35: Total | E35: =INDEX(change_CR_results!T:T,'Sensitivity Analysis Tool'!C44) -> -29.91 | F35: =INDEX(eliminate_OLA_results!R:R,'Sensitivity Analysis Tool'!C45) -> -14.17 | G35: =INDEX(repeal_ATR_results!P:P,'Sensitivity Analysis Tool'!C46) -> -1.496
D37: Increase or Decrease (-) in the Deficit | E37: =INDEX(change_CR_results!U:U,'Sensitivity Analysis Tool'!C44) -> 36.454 | F37: =INDEX(eliminate_OLA_results!S:S,'Sensitivity Analysis Tool'!C45) -> 127.691 | G37: =INDEX(repeal_ATR_results!Q:Q,'Sensitivity Analysis Tool'!C46) -> 1.823
A44: -0.01 | B44: =A46 -> 0.015 | C44: =MATCH(A46&A44&A49&A50&A51,change_CR_results!B:B&change_CR_results!C:C&change_CR_results!D:D&change_CR_results!E:E&change_CR_results!F:F,0) -> 123
C45: =MATCH(A46&A53&A54,eliminate_OLA_results!B:B&eliminate_OLA_results!C:C&eliminate_OLA_results!D:D,0) -> 15
A46: 0.015 | B46: =A46 -> 0.015 | C46: =MATCH(A46&A56&A57,repeal_ATR_results!B:B&repeal_ATR_results!C:C&repeal_ATR_results!D:D,0) -> 15
A48: 0.01 | B48: =A48 -> 0.01
A49: 0.2 | B49: =A49 -> 0.2
A50: 0.3 | B50: =A50 -> 0.3
A51: -0.8 | B51: =A51 -> -0.8
A53: 0.333 | B53: =A53 -> 0.333
A54: 0 | B54: =A54 -> 0
A56: 0.01 | B56: =A56 -> 0.01
A57: 0.04 | B57: =A57 -> 0.04

Sheet potential parameter values (hidden)
E1: Annual Probability of a Financial Crisis that Disrupts Economy
E2: 1 percent | F2: 0.01
E3: 1.5 percent (central estimate) | F3: 0.015
E4: 2 percent | F4: 0.02
C7: Change in Capital Requirements | E7: Change in Bank Failure Rate for Each Percentage-Point Change in Capital
C8: 2 percent lower | D8: -0.02 | E8: 5 percent | F8: 0.05
C9: 1 percent lower (central estimate) | D9: -0.01 | E9: 20 percent (central estimate) | F9: 0.2
C10: 1 percent higher | D10: 0.01 | E10: 60 percent | F10: 0.6
C12: Change in Deposit Insurance Premium Rate for Each Percentage-Point Change in Capital | E12: Effect on Tax Liability of a 1 Percentage Point Increase in Debt
C13: 0 basis points | D13: 0 | E13: 0 | F13: 0
C14: 0.3 basis points (central estimate) | D14: 0.3 | E14: -0.8 basis points (central estimate) | F14: -0.8
C15: 1 basis point | D15: 1 | E15: -1.5 basis points | F15: -1.5
C17: Percentage of Financial Crises that Would be More Severe if Orderly Liquidation Authority Was Eliminated | E17: Effect of Orderly Liquidation Authority on the Likelihood of a Crisis
C18: 0 percent | D18: 0 | E18: 10 percent | F18: 0.1
C19: 33.3 percent (central estimate) | D19: 0.333 | E19: 0 percent (central estimate) | F19: 0
C20: 50 percent | D20: 0.5 | E20: -10 percent | F20: -0.1
E21: Effective Tax Rate on Services From Owner-Occupied Housing
C22: Change in Bank Failure Rate if the Ability-to-Repay Rule was Repealed
C23: None | D23: 0 | E23: -5 percent | F23: -0.05
C24: 1 percent (central estimate) | D24: 0.01 | E24: 4 percent (central estimate) | F24: 0.04
C25: 2 percent | D25: 0.02 | E25: 10 percent | F25: 0.1

Sheet change_CR_results (hidden)
B1: prob_crisis | C1: CR_change | D1: CR_failure | E1: premium_change | F1: tax_change | G1: direct_revenues_total | H1: direct_outlays_total | I1: direct_primary_deficit | J1: noncrisis_revenues_gdp_growth | K1: noncrisis_revenues_financing_mix | L1: noncrisis_revenues_total | M1: noncrisis_outlays_noninterest | N1: noncrisis_outlays_interest | O1: noncrisis_outlays_total | P1: noncrisis_primary_deficit | Q1: crisis_revenues_total | R1: crisis_outlays_noninterest | S1: crisis_outlays_interest | T1: crisis_outlays_total | U1: crisis_primary_deficit
A2: 0 | B2: 0.01 | C2: -0.02 | D2: 0.05 | E2: 0 | F2: 0 | G2: 0.087 | H2: 3.187 | I2: 3.1 | J2: 3.687 | K2: 0 | L2: 3.687 | M2: 0.521 | N2: -0.868 | O2: -0.347 | P2: -4.033 | Q2: -22.999 | R2: 0.483 | S2: -10.807 | T2: -10.324 | U2: 12.675
A3: 1 | B3: 0.01 | C3: -0.02 | D3: 0.05 | E3: 0 | F3: -0.8 | G3: 0.087 | H3: 3.187 | I3: 3.1 | J3: 5.126 | K3: -35.562 | L3: -30.437 | M3: 0.725 | N3: -1.207 | O3: -0.482 | P3: 29.954 | Q3: -22.999 | R3: 0.483 | S3: -10.807 | T3: -10.324 | U3: 12.675
A4: 2 | B4: 0.01 | C4: -0.02 | D4: 0.05 | E4: 0 | F4: -1.5 | G4: 0.087 | H4: 3.187 | I4: 3.1 | J4: 6.385 | K4: -66.68 | L4: -60.295 | M4: 0.903 | N4: -1.504 | O4: -0.601 | P4: 59.694 | Q4: -22.999 | R4: 0.483 | S4: -10.807 | T4: -10.324 | U4: 12.675
A5: 3 | B5: 0.01 | C5: -0.02 | D5: 0.05 | E5: 0.3 | F5: 0 | G5: 0.087 | H5: -9.678 | I5: -9.765 | J5: 3.147 | K5: 0 | L5: 3.147 | M5: 0.445 | N5: -0.741 | O5: -0.296 | P5: -3.443 | Q5: -22.999 | R5: 0.483 | S5: -10.807 | T5: -10.324 | U5: 12.675
A6: 4 | B6: 0.01 | C6: -0.02 | D6: 0.05 | E6: 0.3 | F6: -0.8 | G6: 0.087 | H6: -9.678 | I6: -9.765 | J6: 4.586 | K6: -35.562 | L6: -30.976 | M6: 0.649 | N6: -1.08 | O6: -0.431 | P6: 30.545 | Q6: -22.999 | R6: 0.483 | S6: -10.807 | T6: -10.324 | U6: 12.675
A7: 5 | B7: 0.01 | C7: -0.02 | D7: 0.05 | E7: 0.3 | F7: -1.5 | G7: 0.087 | H7: -9.678 | I7: -9.765 | J7: 5.845 | K7: -66.68 | L7: -60.834 | M7: 0.827 | N7: -1.377 | O7: -0.55 | P7: 60.284 | Q7: -22.999 | R7: 0.483 | S7: -10.807 | T7: -10.324 | U7: 12.675
A8: 6 | B8: 0.01 | C8: -0.02 | D8: 0.05 | E8: 1 | F8: 0 | G8: 0.087 | H8: -39.695 | I8: -39.782 | J8: 1.888 | K8: 0 | L8: 1.888 | M8: 0.267 | N8: -0.445 | O8: -0.178 | P8: -2.065 | Q8: -22.999 | R8: 0.483 | S8: -10.807 | T8: -10.324 | U8: 12.675
A9: 7 | B9: 0.01 | C9: -0.02 | D9: 0.05 | E9: 1 | F9: -0.8 | G9: 0.087 | H9: -39.695 | I9: -39.782 | J9: 3.327 | K9: -35.562 | L9: -32.236 | M9: 0.471 | N9: -0.784 | O9: -0.313 | P9: 31.923 | Q9: -22.999 | R9: 0.483 | S9: -10.807 | T9: -10.324 | U9: 12.675
A10: 8 | B10: 0.01 | C10: -0.02 | D10: 0.05 | E10: 1 | F10: -1.5 | G10: 0.087 | H10: -39.695 | I10: -39.782 | J10: 4.586 | K10: -66.68 | L10: -62.093 | M10: 0.649 | N10: -1.08 | O10: -0.431 | P10: 61.662 | Q10: -22.999 | R10: 0.483 | S10: -10.807 | T10: -10.324 | U10: 12.675
A11: 9 | B11: 0.01 | C11: -0.02 | D11: 0.2 | E11: 0 | F11: 0 | G11: 0.349 | H11: 12.749 | I11: 12.4 | J11: 7.394 | K11: 0 | L11: 7.394 | M11: 1.046 | N11: -1.741 | O11: -0.696 | P11: -8.089 | Q11: -98.729 | R11: 2.074 | S11: -46.393 | T11: -44.319 | U11: 54.41
A12: 10 | B12: 0.01 | C12: -0.02 | D12: 0.2 | E12: 0 | F12: -0.8 | G12: 0.349 | H12: 12.749 | I12: 12.4 | J12: 8.833 | K12: -35.562 | L12: -26.73 | M12: 1.249 | N12: -2.08 | O12: -0.831 | P12: 25.899 | Q12: -98.729 | R12: 2.074 | S12: -46.393 | T12: -44.319 | U12: 54.41
A13: 11 | B13: 0.01 | C13: -0.02 | D13: 0.2 | E13: 0 | F13: -1.5 | G13: 0.349 | H13: 12.749 | I13: 12.4 | J13: 10.092 | K13: -66.68 | L13: -56.587 | M13: 1.428 | N13: -2.377 | O13: -0.949 | P13: 55.638 | Q13: -98.729 | R13: 2.074 | S13: -46.393 | T13: -44.319 | U13: 54.41
A14: 12 | B14: 0.01 | C14: -0.02 | D14: 0.2 | E14: 0.3 | F14: 0 | G14: 0.349 | H14: -0.116 | I14: -0.465 | J14: 6.854 | K14: 0 | L14: 6.854 | M14: 0.969 | N14: -1.614 | O14: -0.645 | P14: -7.499 | Q14: -98.729 | R14: 2.074 | S14: -46.393 | T14: -44.319 | U14: 54.41
A15: 13 | B15: 0.01 | C15: -0.02 | D15: 0.2 | E15: 0.3 | F15: -0.8 | G15: 0.349 | H15: -0.116 | I15: -0.465 | J15: 8.293 | K15: -35.562 | L15: -27.269 | M15: 1.173 | N15: -1.953 | O15: -0.78 | P15: 26.489 | Q15: -98.729 | R15: 2.074 | S15: -46.393 | T15: -44.319 | U15: 54.41
A16: 14 | B16: 0.01 | C16: -0.02 | D16: 0.2 | E16: 0.3 | F16: -1.5 | G16: 0.349 | H16: -0.116 | I16: -0.465 | J16: 9.552 | K16: -66.68 | L16: -57.127 | M16: 1.351 | N16: -2.25 | O16: -0.899 | P16: 56.228 | Q16: -98.729 | R16: 2.074 | S16: -46.393 | T16: -44.319 | U16: 54.41
A17: 15 | B17: 0.01 | C17: -0.02 | D17: 0.2 | E17: 1 | F17: 0 | G17: 0.349 | H17: -30.134 | I17: -30.483 | J17: 5.595 | K17: 0 | L17: 5.595 | M17: 0.791 | N17: -1.318 | O17: -0.526 | P17: -6.121 | Q17: -98.729 | R17: 2.074 | S17: -46.393 | T17: -44.319 | U17: 54.41
A18: 16 | B18: 0.01 | C18: -0.02 | D18: 0.2 | E18: 1 | F18: -0.8 | G18: 0.349 | H18: -30.134 | I18: -30.483 | J18: 7.034 | K18: -35.562 | L18: -28.528 | M18: 0.995 | N18: -1.657 | O18: -0.662 | P18: 27.867 | Q18: -98.729 | R18: 2.074 | S18: -46.393 | T18: -44.319 | U18: 54.41
A19: 17 | B19: 0.01 | C19: -0.02 | D19: 0.2 | E19: 1 | F19: -1.5 | G19: 0.349 | H19: -30.134 | I19: -30.483 | J19: 8.293 | K19: -66.68 | L19: -58.386 | M19: 1.173 | N19: -1.953 | O19: -0.78 | P19: 57.606 | Q19: -98.729 | R19: 2.074 | S19: -46.393 | T19: -44.319 | U19: 54.41
A20: 18 | B20: 0.01 | C20: -0.02 | D20: 0.6 | E20: 0 | F20: 0 | G20: 1.047 | H20: 38.246 | I20: 37.199 | J20: 18.758 | K20: 0 | L20: 18.758 | M20: 2.653 | N20: -4.418 | O20: -1.765 | P20: -20.523 | Q20: -350.038 | R20: 7.353 | S20: -164.483 | T20: -157.129 | U20: 192.908
A21: 19 | B21: 0.01 | C21: -0.02 | D21: 0.6 | E21: 0 | F21: -0.8 | G21: 1.047 | H21: 38.246 | I21: 37.199 | J21: 20.197 | K21: -35.562 | L21: -15.365 | M21: 2.857 | N21: -4.757 | O21: -1.9 | P21: 13.465 | Q21: -350.038 | R21: 7.353 | S21: -164.483 | T21: -157.129 | U21: 192.908
A22: 20 | B22: 0.01 | C22: -0.02 | D22: 0.6 | E22: 0 | F22: -1.5 | G22: 1.047 | H22: 38.246 | I22: 37.199 | J22: 21.456 | K22: -66.68 | L22: -45.223 | M22: 3.035 | N22: -5.054 | O22: -2.019 | P22: 43.204 | Q22: -350.038 | R22: 7.353 | S22: -164.483 | T22: -157.129 | U22: 192.908
A23: 21 | B23: 0.01 | C23: -0.02 | D23: 0.6 | E23: 0.3 | F23: 0 | G23: 1.047 | H23: 25.381 | I23: 24.334 | J23: 18.218 | K23: 0 | L23: 18.218 | M23: 2.577 | N23: -4.291 | O23: -1.714 | P23: -19.932 | Q23: -350.038 | R23: 7.353 | S23: -164.483 | T23: -157.129 | U23: 192.908
A24: 22 | B24: 0.01 | C24: -0.02 | D24: 0.6 | E24: 0.3 | F24: -0.8 | G24: 1.047 | H24: 25.381 | I24: 24.334 | J24: 19.658 | K24: -35.562 | L24: -15.905 | M24: 2.781 | N24: -4.63 | O24: -1.849 | P24: 14.055 | Q24: -350.038 | R24: 7.353 | S24: -164.483 | T24: -157.129 | U24: 192.908
A25: 23 | B25: 0.01 | C25: -0.02 | D25: 0.6 | E25: 0.3 | F25: -1.5 | G25: 1.047 | H25: 25.381 | I25: 24.334 | J25: 20.917 | K25: -66.68 | L25: -45.763 | M25: 2.959 | N25: -4.926 | O25: -1.968 | P25: 43.795 | Q25: -350.038 | R25: 7.353 | S25: -164.483 | T25: -157.129 | U25: 192.908
A26: 24 | B26: 0.01 | C26: -0.02 | D26: 0.6 | E26: 1 | F26: 0 | G26: 1.047 | H26: -4.636 | I26: -5.684 | J26: 16.959 | K26: 0 | L26: 16.959 | M26: 2.399 | N26: -3.994 | O26: -1.595 | P26: -18.555 | Q26: -350.038 | R26: 7.353 | S26: -164.483 | T26: -157.129 | U26: 192.908
A27: 25 | B27: 0.01 | C27: -0.02 | D27: 0.6 | E27: 1 | F27: -0.8 | G27: 1.047 | H27: -4.636 | I27: -5.684 | J27: 18.398 | K27: -35.562 | L27: -17.164 | M27: 2.602 | N27: -4.333 | O27: -1.731 | P27: 15.433 | Q27: -350.038 | R27: 7.353 | S27: -164.483 | T27: -157.129 | U27: 192.908
A28: 26 | B28: 0.01 | C28: -0.02 | D28: 0.6 | E28: 1 | F28: -1.5 | G28: 1.047 | H28: -4.636 | I28: -5.684 | J28: 19.658 | K28: -66.68 | L28: -47.022 | M28: 2.781 | N28: -4.63 | O28: -1.849 | P28: 45.173 | Q28: -350.038 | R28: 7.353 | S28: -164.483 | T28: -157.129 | U28: 192.908
A29: 27 | B29: 0.01 | C29: -0.01 | D29: 0.05 | E29: 0 | F29: 0 | G29: 0.044 | H29: 1.594 | I29: 1.55 | J29: 1.666 | K29: 0 | L29: 1.666 | M29: 0.236 | N29: -0.392 | O29: -0.157 | P29: -1.823 | Q29: -11.219 | R29: 0.236 | S29: -5.272 | T29: -5.036 | U29: 6.183
A30: 28 | B30: 0.01 | C30: -0.01 | D30: 0.05 | E30: 0 | F30: -0.8 | G30: 0.044 | H30: 1.594 | I30: 1.55 | J30: 2.386 | K30: -17.781 | L30: -15.396 | M30: 0.337 | N30: -0.562 | O30: -0.224 | P30: 15.171 | Q30: -11.219 | R30: 0.236 | S30: -5.272 | T30: -5.036 | U30: 6.183
A31: 29 | B31: 0.01 | C31: -0.01 | D31: 0.05 | E31: 0 | F31: -1.5 | G31: 0.044 | H31: 1.594 | I31: 1.55 | J31: 3.015 | K31: -33.34 | L31: -30.325 | M31: 0.426 | N31: -0.71 | O31: -0.284 | P31: 30.041 | Q31: -11.219 | R31: 0.236 | S31: -5.272 | T31: -5.036 | U31: 6.183
A32: 30 | B32: 0.01 | C32: -0.01 | D32: 0.05 | E32: 0.3 | F32: 0 | G32: 0.044 | H32: -4.839 | I32: -4.882 | J32: 1.396 | K32: 0 | L32: 1.396 | M32: 0.197 | N32: -0.329 | O32: -0.131 | P32: -1.528 | Q32: -11.219 | R32: 0.236 | S32: -5.272 | T32: -5.036 | U32: 6.183
A33: 31 | B33: 0.01 | C33: -0.01 | D33: 0.05 | E33: 0.3 | F33: -0.8 | G33: 0.044 | H33: -4.839 | I33: -4.882 | J33: 2.116 | K33: -17.781 | L33: -15.665 | M33: 0.299 | N33: -0.498 | O33: -0.199 | P33: 15.466 | Q33: -11.219 | R33: 0.236 | S33: -5.272 | T33: -5.036 | U33: 6.183
A34: 32 | B34: 0.01 | C34: -0.01 | D34: 0.05 | E34: 0.3 | F34: -1.5 | G34: 0.044 | H34: -4.839 | I34: -4.882 | J34: 2.745 | K34: -33.34 | L34: -30.594 | M34: 0.388 | N34: -0.647 | O34: -0.258 | P34: 30.336 | Q34: -11.219 | R34: 0.236 | S34: -5.272 | T34: -5.036 | U34: 6.183
A35: 33 | B35: 0.01 | C35: -0.01 | D35: 0.05 | E35: 1 | F35: 0 | G35: 0.044 | H35: -19.848 | I35: -19.891 | J35: 0.767 | K35: 0 | L35: 0.767 | M35: 0.108 | N35: -0.181 | O35: -0.072 | P35: -0.839 | Q35: -11.219 | R35: 0.236 | S35: -5.272 | T35: -5.036 | U35: 6.183
A36: 34 | B36: 0.01 | C36: -0.01 | D36: 0.05 | E36: 1 | F36: -0.8 | G36: 0.044 | H36: -19.848 | I36: -19.891 | J36: 1.486 | K36: -17.781 | L36: -16.295 | M36: 0.21 | N36: -0.35 | O36: -0.14 | P36: 16.155 | Q36: -11.219 | R36: 0.236 | S36: -5.272 | T36: -5.036 | U36: 6.183
A37: 35 | B37: 0.01 | C37: -0.01 | D37: 0.05 | E37: 1 | F37: -1.5 | G37: 0.044 | H37: -19.848 | I37: -19.891 | J37: 2.116 | K37: -33.34 | L37: -31.224 | M37: 0.299 | N37: -0.498 | O37: -0.199 | P37: 31.025 | Q37: -11.219 | R37: 0.236 | S37: -5.272 | T37: -5.036 | U37: 6.183
A38: 36 | B38: 0.01 | C38: -0.01 | D38: 0.2 | E38: 0 | F38: 0 | G38: 0.175 | H38: 6.374 | I38: 6.2 | J38: 3.254 | K38: 0 | L38: 3.254 | M38: 0.46 | N38: -0.766 | O38: -0.306 | P38: -3.56 | Q38: -44.877 | R38: 0.943 | S38: -21.088 | T38: -20.145 | U38: 24.732
A39: 37 | B39: 0.01 | C39: -0.01 | D39: 0.2 | E39: 0 | F39: -0.8 | G39: 0.175 | H39: 6.374 | I39: 6.2 | J39: 3.973 | K39: -17.781 | L39: -13.808 | M39: 0.562 | N39: -0.936 | O39: -0.374 | P39: 13.434 | Q39: -44.877 | R39: 0.943 | S39: -21.088 | T39: -20.145 | U39: 24.732
A40: 38 | B40: 0.01 | C40: -0.01 | D40: 0.2 | E40: 0 | F40: -1.5 | G40: 0.175 | H40: 6.374 | I40: 6.2 | J40: 4.603 | K40: -33.34 | L40: -28.737 | M40: 0.651 | N40: -1.084 | O40: -0.433 | P40: 28.304 | Q40: -44.877 | R40: 0.943 | S40: -21.088 | T40: -20.145 | U40: 24.732
A41: 39 | B41: 0.01 | C41: -0.01 | D41: 0.2 | E41: 0.3 | F41: 0 | G41: 0.175 | H41: -0.058 | I41: -0.233 | J41: 2.984 | K41: 0 | L41: 2.984 | M41: 0.422 | N41: -0.703 | O41: -0.281 | P41: -3.264 | Q41: -44.877 | R41: 0.943 | S41: -21.088 | T41: -20.145 | U41: 24.732
A42: 40 | B42: 0.01 | C42: -0.01 | D42: 0.2 | E42: 0.3 | F42: -0.8 | G42: 0.175 | H42: -0.058 | I42: -0.233 | J42: 3.703 | K42: -17.781 | L42: -14.078 | M42: 0.524 | N42: -0.872 | O42: -0.348 | P42: 13.729 | Q42: -44.877 | R42: 0.943 | S42: -21.088 | T42: -20.145 | U42: 24.732
A43: 41 | B43: 0.01 | C43: -0.01 | D43: 0.2 | E43: 0.3 | F43: -1.5 | G43: 0.175 | H43: -0.058 | I43: -0.233 | J43: 4.333 | K43: -33.34 | L43: -29.007 | M43: 0.613 | N43: -1.021 | O43: -0.408 | P43: 28.599 | Q43: -44.877 | R43: 0.943 | S43: -21.088 | T43: -20.145 | U43: 24.732
A44: 42 | B44: 0.01 | C44: -0.01 | D44: 0.2 | E44: 1 | F44: 0 | G44: 0.175 | H44: -15.067 | I44: -15.241 | J44: 2.354 | K44: 0 | L44: 2.354 | M44: 0.333 | N44: -0.554 | O44: -0.221 | P44: -2.576 | Q44: -44.877 | R44: 0.943 | S44: -21.088 | T44: -20.145 | U44: 24.732
A45: 43 | B45: 0.01 | C45: -0.01 | D45: 0.2 | E45: 1 | F45: -0.8 | G45: 0.175 | H45: -15.067 | I45: -15.241 | J45: 3.074 | K45: -17.781 | L45: -14.708 | M45: 0.435 | N45: -0.724 | O45: -0.289 | P45: 14.418 | Q45: -44.877 | R45: 0.943 | S45: -21.088 | T45: -20.145 | U45: 24.732
A46: 44 | B46: 0.01 | C46: -0.01 | D46: 0.2 | E46: 1 | F46: -1.5 | G46: 0.175 | H46: -15.067 | I46: -15.241 | J46: 3.703 | K46: -33.34 | L46: -29.636 | M46: 0.524 | N46: -0.872 | O46: -0.348 | P46: 29.288 | Q46: -44.877 | R46: 0.943 | S46: -21.088 | T46: -20.145 | U46: 24.732
A47: 45 | B47: 0.01 | C47: -0.01 | D47: 0.6 | E47: 0 | F47: 0 | G47: 0.524 | H47: 19.123 | I47: 18.599 | J47: 7.341 | K47: 0 | L47: 7.341 | M47: 1.038 | N47: -1.729 | O47: -0.691 | P47: -8.031 | Q47: -134.63 | R47: 2.828 | S47: -63.263 | T47: -60.434 | U47: 74.196
A48: 46 | B48: 0.01 | C48: -0.01 | D48: 0.6 | E48: 0 | F48: -0.8 | G48: 0.524 | H48: 19.123 | I48: 18.599 | J48: 8.06 | K48: -17.781 | L48: -9.721 | M48: 1.14 | N48: -1.898 | O48: -0.758 | P48: 8.962 | Q48: -134.63 | R48: 2.828 | S48: -63.263 | T48: -60.434 | U48: 74.196
A49: 47 | B49: 0.01 | C49: -0.01 | D49: 0.6 | E49: 0 | F49: -1.5 | G49: 0.524 | H49: 19.123 | I49: 18.599 | J49: 8.69 | K49: -33.34 | L49: -24.65 | M49: 1.229 | N49: -2.047 | O49: -0.818 | P49: 23.832 | Q49: -134.63 | R49: 2.828 | S49: -63.263 | T49: -60.434 | U49: 74.196
A50: 48 | B50: 0.01 | C50: -0.01 | D50: 0.6 | E50: 0.3 | F50: 0 | G50: 0.524 | H50: 12.691 | I50: 12.167 | J50: 7.071 | K50: 0 | L50: 7.071 | M50: 1 | N50: -1.665 | O50: -0.665 | P50: -7.736 | Q50: -134.63 | R50: 2.828 | S50: -63.263 | T50: -60.434 | U50: 74.196
A51: 49 | B51: 0.01 | C51: -0.01 | D51: 0.6 | E51: 0.3 | F51: -0.8 | G51: 0.524 | H51: 12.691 | I51: 12.167 | J51: 7.791 | K51: -17.781 | L51: -9.991 | M51: 1.102 | N51: -1.835 | O51: -0.733 | P51: 9.258 | Q51: -134.63 | R51: 2.828 | S51: -63.263 | T51: -60.434 | U51: 74.196
A52: 50 | B52: 0.01 | C52: -0.01 | D52: 0.6 | E52: 0.3 | F52: -1.5 | G52: 0.524 | H52: 12.691 | I52: 12.167 | J52: 8.42 | K52: -33.34 | L52: -24.92 | M52: 1.191 | N52: -1.983 | O52: -0.792 | P52: 24.127 | Q52: -134.63 | R52: 2.828 | S52: -63.263 | T52: -60.434 | U52: 74.196
A53: 51 | B53: 0.01 | C53: -0.01 | D53: 0.6 | E53: 1 | F53: 0 | G53: 0.524 | H53: -2.318 | I53: -2.842 | J53: 6.441 | K53: 0 | L53: 6.441 | M53: 0.911 | N53: -1.517 | O53: -0.606 | P53: -7.047 | Q53: -134.63 | R53: 2.828 | S53: -63.263 | T53: -60.434 | U53: 74.196
A54: 52 | B54: 0.01 | C54: -0.01 | D54: 0.6 | E54: 1 | F54: -0.8 | G54: 0.524 | H54: -2.318 | I54: -2.842 | J54: 7.161 | K54: -17.781 | L54: -10.62 | M54: 1.013 | N54: -1.687 | O54: -0.674 | P54: 9.947 | Q54: -134.63 | R54: 2.828 | S54: -63.263 | T54: -60.434 | U54: 74.196
A55: 53 | B55: 0.01 | C55: -0.01 | D55: 0.6 | E55: 1 | F55: -1.5 | G55: 0.524 | H55: -2.318 | I55: -2.842 | J55: 7.791 | K55: -33.34 | L55: -25.549 | M55: 1.102 | N55: -1.835 | O55: -0.733 | P55: 24.816 | Q55: -134.63 | R55: 2.828 | S55: -63.263 | T55: -60.434 | U55: 74.196
A56: 54 | B56: 0.01 | C56: 0.01 | D56: 0.05 | E56: 0 | F56: 0 | G56: -0.044 | H56: -1.594 | I56: -1.55 | J56: -1.416 | K56: 0 | L56: -1.416 | M56: -0.2 | N56: 0.333 | O56: 0.133 | P56: 1.549 | Q56: 10.685 | R56: -0.224 | S56: 5.021 | T56: 4.796 | U56: -5.889
A57: 55 | B57: 0.01 | C57: 0.01 | D57: 0.05 | E57: 0 | F57: -0.8 | G57: -0.044 | H57: -1.594 | I57: -1.55 | J57: -2.135 | K57: 17.781 | L57: 15.646 | M57: -0.302 | N57: 0.503 | O57: 0.201 | P57: -15.445 | Q57: 10.685 | R57: -0.224 | S57: 5.021 | T57: 4.796 | U57: -5.889
A58: 56 | B58: 0.01 | C58: 0.01 | D58: 0.05 | E58: 0 | F58: -1.5 | G58: -0.044 | H58: -1.594 | I58: -1.55 | J58: -2.765 | K58: 33.34 | L58: 30.575 | M58: -0.391 | N58: 0.651 | O58: 0.26 | P58: -30.315 | Q58: 10.685 | R58: -0.224 | S58: 5.021 | T58: 4.796 | U58: -5.889
A59: 57 | B59: 0.01 | C59: 0.01 | D59: 0.05 | E59: 0.3 | F59: 0 | G59: -0.044 | H59: 4.839 | I59: 4.882 | J59: -1.146 | K59: 0 | L59: -1.146 | M59: -0.162 | N59: 0.27 | O59: 0.108 | P59: 1.254 | Q59: 10.685 | R59: -0.224 | S59: 5.021 | T59: 4.796 | U59: -5.889
A60: 58 | B60: 0.01 | C60: 0.01 | D60: 0.05 | E60: 0.3 | F60: -0.8 | G60: -0.044 | H60: 4.839 | I60: 4.882 | J60: -1.866 | K60: 17.781 | L60: 15.916 | M60: -0.264 | N60: 0.439 | O60: 0.176 | P60: -15.74 | Q60: 10.685 | R60: -0.224 | S60: 5.021 | T60: 4.796 | U60: -5.889
A61: 59 | B61: 0.01 | C61: 0.01 | D61: 0.05 | E61: 0.3 | F61: -1.5 | G61: -0.044 | H61: 4.839 | I61: 4.882 | J61: -2.495 | K61: 33.34 | L61: 30.845 | M61: -0.353 | N61: 0.588 | O61: 0.235 | P61: -30.61 | Q61: 10.685 | R61: -0.224 | S61: 5.021 | T61: 4.796 | U61: -5.889
A62: 60 | B62: 0.01 | C62: 0.01 | D62: 0.05 | E62: 1 | F62: 0 | G62: -0.044 | H62: 19.848 | I62: 19.891 | J62: -0.516 | K62: 0 | L62: -0.516 | M62: -0.073 | N62: 0.122 | O62: 0.049 | P62: 0.565 | Q62: 10.685 | R62: -0.224 | S62: 5.021 | T62: 4.796 | U62: -5.889
A63: 61 | B63: 0.01 | C63: 0.01 | D63: 0.05 | E63: 1 | F63: -0.8 | G63: -0.044 | H63: 19.848 | I63: 19.891 | J63: -1.236 | K63: 17.781 | L63: 16.545 | M63: -0.175 | N63: 0.291 | O63: 0.116 | P63: -16.429 | Q63: 10.685 | R63: -0.224 | S63: 5.021 | T63: 4.796 | U63: -5.889
A64: 62 | B64: 0.01 | C64: 0.01 | D64: 0.05 | E64: 1 | F64: -1.5 | G64: -0.044 | H64: 19.848 | I64: 19.891 | J64: -1.866 | K64: 33.34 | L64: 31.474 | M64: -0.264 | N64: 0.439 | O64: 0.176 | P64: -31.299 | Q64: 10.685 | R64: -0.224 | S64: 5.021 | T64: 4.796 | U64: -5.889
A65: 63 | B65: 0.01 | C65: 0.01 | D65: 0.2 | E65: 0 | F65: 0 | G65: -0.175 | H65: -6.374 | I65: -6.2 | J65: -2.604 | K65: 0 | L65: -2.604 | M65: -0.368 | N65: 0.613 | O65: 0.245 | P65: 2.849 | Q65: 37.397 | R65: -0.786 | S65: 17.573 | T65: 16.787 | U65: -20.61
A66: 64 | B66: 0.01 | C66: 0.01 | D66: 0.2 | E66: 0 | F66: -0.8 | G66: -0.175 | H66: -6.374 | I66: -6.2 | J66: -3.324 | K66: 17.781 | L66: 14.457 | M66: -0.47 | N66: 0.783 | O66: 0.313 | P66: -14.145 | Q66: 37.397 | R66: -0.786 | S66: 17.573 | T66: 16.787 | U66: -20.61
A67: 65 | B67: 0.01 | C67: 0.01 | D67: 0.2 | E67: 0 | F67: -1.5 | G67: -0.175 | H67: -6.374 | I67: -6.2 | J67: -3.953 | K67: 33.34 | L67: 29.386 | M67: -0.559 | N67: 0.931 | O67: 0.372 | P67: -29.014 | Q67: 37.397 | R67: -0.786 | S67: 17.573 | T67: 16.787 | U67: -20.61
A68: 66 | B68: 0.01 | C68: 0.01 | D68: 0.2 | E68: 0.3 | F68: 0 | G68: -0.175 | H68: 0.058 | I68: 0.233 | J68: -2.334 | K68: 0 | L68: -2.334 | M68: -0.33 | N68: 0.55 | O68: 0.22 | P68: 2.554 | Q68: 37.397 | R68: -0.786 | S68: 17.573 | T68: 16.787 | U68: -20.61
A69: 67 | B69: 0.01 | C69: 0.01 | D69: 0.2 | E69: 0.3 | F69: -0.8 | G69: -0.175 | H69: 0.058 | I69: 0.233 | J69: -3.054 | K69: 17.781 | L69: 14.727 | M69: -0.432 | N69: 0.719 | O69: 0.287 | P69: -14.44 | Q69: 37.397 | R69: -0.786 | S69: 17.573 | T69: 16.787 | U69: -20.61
A70: 68 | B70: 0.01 | C70: 0.01 | D70: 0.2 | E70: 0.3 | F70: -1.5 | G70: -0.175 | H70: 0.058 | I70: 0.233 | J70: -3.684 | K70: 33.34 | L70: 29.656 | M70: -0.521 | N70: 0.868 | O70: 0.347 | P70: -29.31 | Q70: 37.397 | R70: -0.786 | S70: 17.573 | T70: 16.787 | U70: -20.61
A71: 69 | B71: 0.01 | C71: 0.01 | D71: 0.2 | E71: 1 | F71: 0 | G71: -0.175 | H71: 15.067 | I71: 15.241 | J71: -1.705 | K71: 0 | L71: -1.705 | M71: -0.241 | N71: 0.402 | O71: 0.16 | P71: 1.865 | Q71: 37.397 | R71: -0.786 | S71: 17.573 | T71: 16.787 | U71: -20.61
A72: 70 | B72: 0.01 | C72: 0.01 | D72: 0.2 | E72: 1 | F72: -0.8 | G72: -0.175 | H72: 15.067 | I72: 15.241 | J72: -2.424 | K72: 17.781 | L72: 15.357 | M72: -0.343 | N72: 0.571 | O72: 0.228 | P72: -15.129 | Q72: 37.397 | R72: -0.786 | S72: 17.573 | T72: 16.787 | U72: -20.61
A73: 71 | B73: 0.01 | C73: 0.01 | D73: 0.2 | E73: 1 | F73: -1.5 | G73: -0.175 | H73: 15.067 | I73: 15.241 | J73: -3.054 | K73: 33.34 | L73: 30.286 | M73: -0.432 | N73: 0.719 | O73: 0.287 | P73: -29.998 | Q73: 37.397 | R73: -0.786 | S73: 17.573 | T73: 16.787 | U73: -20.61
A74: 72 | B74: 0.01 | C74: 0.01 | D74: 0.6 | E74: 0 | F74: 0 | G74: -0.524 | H74: -19.123 | I74: -18.599 | J74: -4.744 | K74: 0 | L74: -4.744 | M74: -0.671 | N74: 1.117 | O74: 0.446 | P74: 5.19 | Q74: 84.144 | R74: -1.768 | S74: 39.539 | T74: 37.771 | U74: -46.372
A75: 73 | B75: 0.01 | C75: 0.01 | D75: 0.6 | E75: 0 | F75: -0.8 | G75: -0.524 | H75: -19.123 | I75: -18.599 | J75: -5.463 | K75: 17.781 | L75: 12.318 | M75: -0.773 | N75: 1.287 | O75: 0.514 | P75: -11.804 | Q75: 84.144 | R75: -1.768 | S75: 39.539 | T75: 37.771 | U75: -46.372
A76: 74 | B76: 0.01 | C76: 0.01 | D76: 0.6 | E76: 0 | F76: -1.5 | G76: -0.524 | H76: -19.123 | I76: -18.599 | J76: -6.093 | K76: 33.34 | L76: 27.247 | M76: -0.862 | N76: 1.435 | O76: 0.573 | P76: -26.674 | Q76: 84.144 | R76: -1.768 | S76: 39.539 | T76: 37.771 | U76: -46.372
A77: 75 | B77: 0.01 | C77: 0.01 | D77: 0.6 | E77: 0.3 | F77: 0 | G77: -0.524 | H77: -12.691 | I77: -12.167 | J77: -4.474 | K77: 0 | L77: -4.474 | M77: -0.633 | N77: 1.054 | O77: 0.421 | P77: 4.895 | Q77: 84.144 | R77: -1.768 | S77: 39.539 | T77: 37.771 | U77: -46.372
A78: 76 | B78: 0.01 | C78: 0.01 | D78: 0.6 | E78: 0.3 | F78: -0.8 | G78: -0.524 | H78: -12.691 | I78: -12.167 | J78: -5.193 | K78: 17.781 | L78: 12.588 | M78: -0.735 | N78: 1.223 | O78: 0.489 | P78: -12.099 | Q78: 84.144 | R78: -1.768 | S78: 39.539 | T78: 37.771 | U78: -46.372
A79: 77 | B79: 0.01 | C79: 0.01 | D79: 0.6 | E79: 0.3 | F79: -1.5 | G79: -0.524 | H79: -12.691 | I79: -12.167 | J79: -5.823 | K79: 33.34 | L79: 27.517 | M79: -0.824 | N79: 1.371 | O79: 0.548 | P79: -26.969 | Q79: 84.144 | R79: -1.768 | S79: 39.539 | T79: 37.771 | U79: -46.372
A80: 78 | B80: 0.01 | C80: 0.01 | D80: 0.6 | E80: 1 | F80: 0 | G80: -0.524 | H80: 2.318 | I80: 2.842 | J80: -3.844 | K80: 0 | L80: -3.844 | M80: -0.544 | N80: 0.905 | O80: 0.362 | P80: 4.206 | Q80: 84.144 | R80: -1.768 | S80: 39.539 | T80: 37.771 | U80: -46.372
A81: 79 | B81: 0.01 | C81: 0.01 | D81: 0.6 | E81: 1 | F81: -0.8 | G81: -0.524 | H81: 2.318 | I81: 2.842 | J81: -4.564 | K81: 17.781 | L81: 13.218 | M81: -0.646 | N81: 1.075 | O81: 0.429 | P81: -12.788 | Q81: 84.144 | R81: -1.768 | S81: 39.539 | T81: 37.771 | U81: -46.372
A82: 80 | B82: 0.01 | C82: 0.01 | D82: 0.6 | E82: 1 | F82: -1.5 | G82: -0.524 | H82: 2.318 | I82: 2.842 | J82: -5.193 | K82: 33.34 | L82: 28.146 | M82: -0.735 | N82: 1.223 | O82: 0.489 | P82: -27.658 | Q82: 84.144 | R82: -1.768 | S82: 39.539 | T82: 37.771 | U82: -46.372
A83: 81 | B83: 0.015 | C83: -0.02 | D83: 0.05 | E83: 0 | F83: 0 | G83: 0.087 | H83: 3.187 | I83: 3.1 | J83: 3.687 | K83: 0 | L83: 3.687 | M83: 0.521 | N83: -0.868 | O83: -0.347 | P83: -4.033 | Q83: -34.011 | R83: 0.695 | S83: -16.024 | T83: -15.329 | U83: 18.683
A84: 82 | B84: 0.015 | C84: -0.02 | D84: 0.05 | E84: 0 | F84: -0.8 | G84: 0.087 | H84: 3.187 | I84: 3.1 | J84: 5.126 | K84: -35.562 | L84: -30.437 | M84: 0.725 | N84: -1.207 | O84: -0.482 | P84: 29.954 | Q84: -34.011 | R84: 0.695 | S84: -16.024 | T84: -15.329 | U84: 18.683
A85: 83 | B85: 0.015 | C85: -0.02 | D85: 0.05 | E85: 0 | F85: -1.5 | G85: 0.087 | H85: 3.187 | I85: 3.1 | J85: 6.385 | K85: -66.68 | L85: -60.295 | M85: 0.903 | N85: -1.504 | O85: -0.601 | P85: 59.694 | Q85: -34.011 | R85: 0.695 | S85: -16.024 | T85: -15.329 | U85: 18.683
A86: 84 | B86: 0.015 | C86: -0.02 | D86: 0.05 | E86: 0.3 | F86: 0 | G86: 0.087 | H86: -9.678 | I86: -9.765 | J86: 3.147 | K86: 0 | L86: 3.147 | M86: 0.445 | N86: -0.741 | O86: -0.296 | P86: -3.443 | Q86: -34.011 | R86: 0.695 | S86: -16.024 | T86: -15.329 | U86: 18.683
A87: 85 | B87: 0.015 | C87: -0.02 | D87: 0.05 | E87: 0.3 | F87: -0.8 | G87: 0.087 | H87: -9.678 | I87: -9.765 | J87: 4.586 | K87: -35.562 | L87: -30.976 | M87: 0.649 | N87: -1.08 | O87: -0.431 | P87: 30.545 | Q87: -34.011 | R87: 0.695 | S87: -16.024 | T87: -15.329 | U87: 18.683
A88: 86 | B88: 0.015 | C88: -0.02 | D88: 0.05 | E88: 0.3 | F88: -1.5 | G88: 0.087 | H88: -9.678 | I88: -9.765 | J88: 5.845 | K88: -66.68 | L88: -60.834 | M88: 0.827 | N88: -1.377 | O88: -0.55 | P88: 60.284 | Q88: -34.011 | R88: 0.695 | S88: -16.024 | T88: -15.329 | U88: 18.683
A89: 87 | B89: 0.015 | C89: -0.02 | D89: 0.05 | E89: 1 | F89: 0 | G89: 0.087 | H89: -39.695 | I89: -39.782 | J89: 1.888 | K89: 0 | L89: 1.888 | M89: 0.267 | N89: -0.445 | O89: -0.178 | P89: -2.065 | Q89: -34.011 | R89: 0.695 | S89: -16.024 | T89: -15.329 | U89: 18.683
A90: 88 | B90: 0.015 | C90: -0.02 | D90: 0.05 | E90: 1 | F90: -0.8 | G90: 0.087 | H90: -39.695 | I90: -39.782 | J90: 3.327 | K90: -35.562 | L90: -32.236 | M90: 0.471 | N90: -0.784 | O90: -0.313 | P90: 31.923 | Q90: -34.011 | R90: 0.695 | S90: -16.024 | T90: -15.329 | U90: 18.683
A91: 89 | B91: 0.015 | C91: -0.02 | D91: 0.05 | E91: 1 | F91: -1.5 | G91: 0.087 | H91: -39.695 | I91: -39.782 | J91: 4.586 | K91: -66.68 | L91: -62.093 | M91: 0.649 | N91: -1.08 | O91: -0.431 | P91: 61.662 | Q91: -34.011 | R91: 0.695 | S91: -16.024 | T91: -15.329 | U91: 18.683
A92: 90 | B92: 0.015 | C92: -0.02 | D92: 0.2 | E92: 0 | F92: 0 | G92: 0.349 | H92: 12.749 | I92: 12.4 | J92: 7.394 | K92: 0 | L92: 7.394 | M92: 1.046 | N92: -1.741 | O92: -0.696 | P92: -8.089 | Q92: -146 | R92: 2.984 | S92: -68.786 | T92: -65.802 | U92: 80.198
A93: 91 | B93: 0.015 | C93: -0.02 | D93: 0.2 | E93: 0 | F93: -0.8 | G93: 0.349 | H93: 12.749 | I93: 12.4 | J93: 8.833 | K93: -35.562 | L93: -26.73 | M93: 1.249 | N93: -2.08 | O93: -0.831 | P93: 25.899 | Q93: -146 | R93: 2.984 | S93: -68.786 | T93: -65.802 | U93: 80.198
A94: 92 | B94: 0.015 | C94: -0.02 | D94: 0.2 | E94: 0 | F94: -1.5 | G94: 0.349 | H94: 12.749 | I94: 12.4 | J94: 10.092 | K94: -66.68 | L94: -56.587 | M94: 1.428 | N94: -2.377 | O94: -0.949 | P94: 55.638 | Q94: -146 | R94: 2.984 | S94: -68.786 | T94: -65.802 | U94: 80.198
A95: 93 | B95: 0.015 | C95: -0.02 | D95: 0.2 | E95: 0.3 | F95: 0 | G95: 0.349 | H95: -0.116 | I95: -0.465 | J95: 6.854 | K95: 0 | L95: 6.854 | M95: 0.969 | N95: -1.614 | O95: -0.645 | P95: -7.499 | Q95: -146 | R95: 2.984 | S95: -68.786 | T95: -65.802 | U95: 80.198
A96: 94 | B96: 0.015 | C96: -0.02 | D96: 0.2 | E96: 0.3 | F96: -0.8 | G96: 0.349 | H96: -0.116 | I96: -0.465 | J96: 8.293 | K96: -35.562 | L96: -27.269 | M96: 1.173 | N96: -1.953 | O96: -0.78 | P96: 26.489 | Q96: -146 | R96: 2.984 | S96: -68.786 | T96: -65.802 | U96: 80.198
A97: 95 | B97: 0.015 | C97: -0.02 | D97: 0.2 | E97: 0.3 | F97: -1.5 | G97: 0.349 | H97: -0.116 | I97: -0.465 | J97: 9.552 | K97: -66.68 | L97: -57.127 | M97: 1.351 | N97: -2.25 | O97: -0.899 | P97: 56.228 | Q97: -146 | R97: 2.984 | S97: -68.786 | T97: -65.802 | U97: 80.198
A98: 96 | B98: 0.015 | C98: -0.02 | D98: 0.2 | E98: 1 | F98: 0 | G98: 0.349 | H98: -30.134 | I98: -30.483 | J98: 5.595 | K98: 0 | L98: 5.595 | M98: 0.791 | N98: -1.318 | O98: -0.526 | P98: -6.121 | Q98: -146 | R98: 2.984 | S98: -68.786 | T98: -65.802 | U98: 80.198
A99: 97 | B99: 0.015 | C99: -0.02 | D99: 0.2 | E99: 1 | F99: -0.8 | G99: 0.349 | H99: -30.134 | I99: -30.483 | J99: 7.034 | K99: -35.562 | L99: -28.528 | M99: 0.995 | N99: -1.657 | O99: -0.662 | P99: 27.867 | Q99: -146 | R99: 2.984 | S99: -68.786 | T99: -65.802 | U99: 80.198
A100: 98 | B100: 0.015 | C100: -0.02 | D100: 0.2 | E100: 1 | F100: -1.5 | G100: 0.349 | H100: -30.134 | I100: -30.483 | J100: 8.293 | K100: -66.68 | L100: -58.386 | M100: 1.173 | N100: -1.953 | O100: -0.78 | P100: 57.606 | Q100: -146 | R100: 2.984 | S100: -68.786 | T100: -65.802 | U100: 80.198
A101: 99 | B101: 0.015 | C101: -0.02 | D101: 0.6 | E101: 0 | F101: 0 | G101: 1.047 | H101: 38.246 | I101: 37.199 | J101: 18.758 | K101: 0 | L101: 18.758 | M101: 2.653 | N101: -4.418 | O101: -1.765 | P101: -20.523 | Q101: -517.638 | R101: 10.581 | S101: -243.879 | T101: -233.298 | U101: 284.34
A102: 100 | B102: 0.015 | C102: -0.02 | D102: 0.6 | E102: 0 | F102: -0.8 | G102: 1.047 | H102: 38.246 | I102: 37.199 | J102: 20.197 | K102: -35.562 | L102: -15.365 | M102: 2.857 | N102: -4.757 | O102: -1.9 | P102: 13.465 | Q102: -517.638 | R102: 10.581 | S102: -243.879 | T102: -233.298 | U102: 284.34
A103: 101 | B103: 0.015 | C103: -0.02 | D103: 0.6 | E103: 0 | F103: -1.5 | G103: 1.047 | H103: 38.246 | I103: 37.199 | J103: 21.456 | K103: -66.68 | L103: -45.223 | M103: 3.035 | N103: -5.054 | O103: -2.019 | P103: 43.204 | Q103: -517.638 | R103: 10.581 | S103: -243.879 | T103: -233.298 | U103: 284.34
A104: 102 | B104: 0.015 | C104: -0.02 | D104: 0.6 | E104: 0.3 | F104: 0 | G104: 1.047 | H104: 25.381 | I104: 24.334 | J104: 18.218 | K104: 0 | L104: 18.218 | M104: 2.577 | N104: -4.291 | O104: -1.714 | P104: -19.932 | Q104: -517.638 | R104: 10.581 | S104: -243.879 | T104: -233.298 | U104: 284.34
A105: 103 | B105: 0.015 | C105: -0.02 | D105: 0.6 | E105: 0.3 | F105: -0.8 | G105: 1.047 | H105: 25.381 | I105: 24.334 | J105: 19.658 | K105: -35.562 | L105: -15.905 | M105: 2.781 | N105: -4.63 | O105: -1.849 | P105: 14.055 | Q105: -517.638 | R105: 10.581 | S105: -243.879 | T105: -233.298 | U105: 284.34
A106: 104 | B106: 0.015 | C106: -0.02 | D106: 0.6 | E106: 0.3 | F106: -1.5 | G106: 1.047 | H106: 25.381 | I106: 24.334 | J106: 20.917 | K106: -66.68 | L106: -45.763 | M106: 2.959 | N106: -4.926 | O106: -1.968 | P106: 43.795 | Q106: -517.638 | R106: 10.581 | S106: -243.879 | T106: -233.298 | U106: 284.34
A107: 105 | B107: 0.015 | C107: -0.02 | D107: 0.6 | E107: 1 | F107: 0 | G107: 1.047 | H107: -4.636 | I107: -5.684 | J107: 16.959 | K107: 0 | L107: 16.959 | M107: 2.399 | N107: -3.994 | O107: -1.595 | P107: -18.555 | Q107: -517.638 | R107: 10.581 | S107: -243.879 | T107: -233.298 | U107: 284.34
A108: 106 | B108: 0.015 | C108: -0.02 | D108: 0.6 | E108: 1 | F108: -0.8 | G108: 1.047 | H108: -4.636 | I108: -5.684 | J108: 18.398 | K108: -35.562 | L108: -17.164 | M108: 2.602 | N108: -4.333 | O108: -1.731 | P108: 15.433 | Q108: -517.638 | R108: 10.581 | S108: -243.879 | T108: -233.298 | U108: 284.34
A109: 107 | B109: 0.015 | C109: -0.02 | D109: 0.6 | E109: 1 | F109: -1.5 | G109: 1.047 | H109: -4.636 | I109: -5.684 | J109: 19.658 | K109: -66.68 | L109: -47.022 | M109: 2.781 | N109: -4.63 | O109: -1.849 | P109: 45.173 | Q109: -517.638 | R109: 10.581 | S109: -243.879 | T109: -233.298 | U109: 284.34
A110: 108 | B110: 0.015 | C110: -0.01 | D110: 0.05 | E110: 0 | F110: 0 | G110: 0.044 | H110: 1.594 | I110: 1.55 | J110: 1.666 | K110: 0 | L110: 1.666 | M110: 0.236 | N110: -0.392 | O110: -0.157 | P110: -1.823 | Q110: -16.591 | R110: 0.339 | S110: -7.817 | T110: -7.478 | U110: 9.113
A111: 109 | B111: 0.015 | C111: -0.01 | D111: 0.05 | E111: 0 | F111: -0.8 | G111: 0.044 | H111: 1.594 | I111: 1.55 | J111: 2.386 | K111: -17.781 | L111: -15.396 | M111: 0.337 | N111: -0.562 | O111: -0.224 | P111: 15.171 | Q111: -16.591 | R111: 0.339 | S111: -7.817 | T111: -7.478 | U111: 9.113
A112: 110 | B112: 0.015 | C112: -0.01 | D112: 0.05 | E112: 0 | F112: -1.5 | G112: 0.044 | H112: 1.594 | I112: 1.55 | J112: 3.015 | K112: -33.34 | L112: -30.325 | M112: 0.426 | N112: -0.71 | O112: -0.284 | P112: 30.041 | Q112: -16.591 | R112: 0.339 | S112: -7.817 | T112: -7.478 | U112: 9.113
A113: 111 | B113: 0.015 | C113: -0.01 | D113: 0.05 | E113: 0.3 | F113: 0 | G113: 0.044 | H113: -4.839 | I113: -4.882 | J113: 1.396 | K113: 0 | L113: 1.396 | M113: 0.197 | N113: -0.329 | O113: -0.131 | P113: -1.528 | Q113: -16.591 | R113: 0.339 | S113: -7.817 | T113: -7.478 | U113: 9.113
A114: 112 | B114: 0.015 | C114: -0.01 | D114: 0.05 | E114: 0.3 | F114: -0.8 | G114: 0.044 | H114: -4.839 | I114: -4.882 | J114: 2.116 | K114: -17.781 | L114: -15.665 | M114: 0.299 | N114: -0.498 | O114: -0.199 | P114: 15.466 | Q114: -16.591 | R114: 0.339 | S114: -7.817 | T114: -7.478 | U114: 9.113
A115: 113 | B115: 0.015 | C115: -0.01 | D115: 0.05 | E115: 0.3 | F115: -1.5 | G115: 0.044 | H115: -4.839 | I115: -4.882 | J115: 2.745 | K115: -33.34 | L115: -30.594 | M115: 0.388 | N115: -0.647 | O115: -0.258 | P115: 30.336 | Q115: -16.591 | R115: 0.339 | S115: -7.817 | T115: -7.478 | U115: 9.113
A116: 114 | B116: 0.015 | C116: -0.01 | D116: 0.05 | E116: 1 | F116: 0 | G116: 0.044 | H116: -19.848 | I116: -19.891 | J116: 0.767 | K116: 0 | L116: 0.767 | M116: 0.108 | N116: -0.181 | O116: -0.072 | P116: -0.839 | Q116: -16.591 | R116: 0.339 | S116: -7.817 | T116: -7.478 | U116: 9.113
A117: 115 | B117: 0.015 | C117: -0.01 | D117: 0.05 | E117: 1 | F117: -0.8 | G117: 0.044 | H117: -19.848 | I117: -19.891 | J117: 1.486 | K117: -17.781 | L117: -16.295 | M117: 0.21 | N117: -0.35 | O117: -0.14 | P117: 16.155 | Q117: -16.591 | R117: 0.339 | S117: -7.817 | T117: -7.478 | U117: 9.113
A118: 116 | B118: 0.015 | C118: -0.01 | D118: 0.05 | E118: 1 | F118: -1.5 | G118: 0.044 | H118: -19.848 | I118: -19.891 | J118: 2.116 | K118: -33.34 | L118: -31.224 | M118: 0.299 | N118: -0.498 | O118: -0.199 | P118: 31.025 | Q118: -16.591 | R118: 0.339 | S118: -7.817 | T118: -7.478 | U118: 9.113
A119: 117 | B119: 0.015 | C119: -0.01 | D119: 0.2 | E119: 0 | F119: 0 | G119: 0.175 | H119: 6.374 | I119: 6.2 | J119: 3.254 | K119: 0 | L119: 3.254 | M119: 0.46 | N119: -0.766 | O119: -0.306 | P119: -3.56 | Q119: -66.364 | R119: 1.357 | S119: -31.267 | T119: -29.91 | U119: 36.454
A120: 118 | B120: 0.015 | C120: -0.01 | D120: 0.2 | E120: 0 | F120: -0.8 | G120: 0.175 | H120: 6.374 | I120: 6.2 | J120: 3.973 | K120: -17.781 | L120: -13.808 | M120: 0.562 | N120: -0.936 | O120: -0.374 | P120: 13.434 | Q120: -66.364 | R120: 1.357 | S120: -31.267 | T120: -29.91 | U120: 36.454
A121: 119 | B121: 0.015 | C121: -0.01 | D121: 0.2 | E121: 0 | F121: -1.5 | G121: 0.175 | H121: 6.374 | I121: 6.2 | J121: 4.603 | K121: -33.34 | L121: -28.737 | M121: 0.651 | N121: -1.084 | O121: -0.433 | P121: 28.304 | Q121: -66.364 | R121: 1.357 | S121: -31.267 | T121: -29.91 | U121: 36.454
A122: 120 | B122: 0.015 | C122: -0.01 | D122: 0.2 | E122: 0.3 | F122: 0 | G122: 0.175 | H122: -0.058 | I122: -0.233 | J122: 2.984 | K122: 0 | L122: 2.984 | M122: 0.422 | N122: -0.703 | O122: -0.281 | P122: -3.264 | Q122: -66.364 | R122: 1.357 | S122: -31.267 | T122: -29.91 | U122: 36.454
A123: 121 | B123: 0.015 | C123: -0.01 | D123: 0.2 | E123: 0.3 | F123: -0.8 | G123: 0.175 | H123: -0.058 | I123: -0.233 | J123: 3.703 | K123: -17.781 | L123: -14.078 | M123: 0.524 | N123: -0.872 | O123: -0.348 | P123: 13.729 | Q123: -66.364 | R123: 1.357 | S123: -31.267 | T123: -29.91 | U123: 36.454
A124: 122 | B124: 0.015 | C124: -0.01 | D124: 0.2 | E124: 0.3 | F124: -1.5 | G124: 0.175 | H124: -0.058 | I124: -0.233 | J124: 4.333 | K124: -33.34 | L124: -29.007 | M124: 0.613 | N124: -1.021 | O124: -0.408 | P124: 28.599 | Q124: -66.364 | R124: 1.357 | S124: -31.267 | T124: -29.91 | U124: 36.454
A125: 123 | B125: 0.015 | C125: -0.01 | D125: 0.2 | E125: 1 | F125: 0 | G125: 0.175 | H125: -15.067 | I125: -15.241 | J125: 2.354 | K125: 0 | L125: 2.354 | M125: 0.333 | N125: -0.554 | O125: -0.221 | P125: -2.576 | Q125: -66.364 | R125: 1.357 | S125: -31.267 | T125: -29.91 | U125: 36.454
A126: 124 | B126: 0.015 | C126: -0.01 | D126: 0.2 | E126: 1 | F126: -0.8 | G126: 0.175 | H126: -15.067 | I126: -15.241 | J126: 3.074 | K126: -17.781 | L126: -14.708 | M126: 0.435 | N126: -0.724 | O126: -0.289 | P126: 14.418 | Q126: -66.364 | R126: 1.357 | S126: -31.267 | T126: -29.91 | U126: 36.454
A127: 125 | B127: 0.015 | C127: -0.01 | D127: 0.2 | E127: 1 | F127: -1.5 | G127: 0.175 | H127: -15.067 | I127: -15.241 | J127: 3.703 | K127: -33.34 | L127: -29.636 | M127: 0.524 | N127: -0.872 | O127: -0.348 | P127: 29.288 | Q127: -66.364 | R127: 1.357 | S127: -31.267 | T127: -29.91 | U127: 36.454
A128: 126 | B128: 0.015 | C128: -0.01 | D128: 0.6 | E128: 0 | F128: 0 | G128: 0.524 | H128: 19.123 | I128: 18.599 | J128: 7.341 | K128: 0 | L128: 7.341 | M128: 1.038 | N128: -1.729 | O128: -0.691 | P128: -8.031 | Q128: -199.092 | R128: 4.07 | S128: -93.8 | T128: -89.73 | U128: 109.361
A129: 127 | B129: 0.015 | C129: -0.01 | D129: 0.6 | E129: 0 | F129: -0.8 | G129: 0.524 | H129: 19.123 | I129: 18.599 | J129: 8.06 | K129: -17.781 | L129: -9.721 | M129: 1.14 | N129: -1.898 | O129: -0.758 | P129: 8.962 | Q129: -199.092 | R129: 4.07 | S129: -93.8 | T129: -89.73 | U129: 109.361
A130: 128 | B130: 0.015 | C130: -0.01 | D130: 0.6 | E130: 0 | F130: -1.5 | G130: 0.524 | H130: 19.123 | I130: 18.599 | J130: 8.69 | K130: -33.34 | L130: -24.65 | M130: 1.229 | N130: -2.047 | O130: -0.818 | P130: 23.832 | Q130: -199.092 | R130: 4.07 | S130: -93.8 | T130: -89.73 | U130: 109.361
A131: 129 | B131: 0.015 | C131: -0.01 | D131: 0.6 | E131: 0.3 | F131: 0 | G131: 0.524 | H131: 12.691 | I131: 12.167 | J131: 7.071 | K131: 0 | L131: 7.071 | M131: 1 | N131: -1.665 | O131: -0.665 | P131: -7.736 | Q131: -199.092 | R131: 4.07 | S131: -93.8 | T131: -89.73 | U131: 109.361
A132: 130 | B132: 0.015 | C132: -0.01 | D132: 0.6 | E132: 0.3 | F132: -0.8 | G132: 0.524 | H132: 12.691 | I132: 12.167 | J132: 7.791 | K132: -17.781 | L132: -9.991 | M132: 1.102 | N132: -1.835 | O132: -0.733 | P132: 9.258 | Q132: -199.092 | R132: 4.07 | S132: -93.8 | T132: -89.73 | U132: 109.361
A133: 131 | B133: 0.015 | C133: -0.01 | D133: 0.6 | E133: 0.3 | F133: -1.5 | G133: 0.524 | H133: 12.691 | I133: 12.167 | J133: 8.42 | K133: -33.34 | L133: -24.92 | M133: 1.191 | N133: -1.983 | O133: -0.792 | P133: 24.127 | Q133: -199.092 | R133: 4.07 | S133: -93.8 | T133: -89.73 | U133: 109.361
A134: 132 | B134: 0.015 | C134: -0.01 | D134: 0.6 | E134: 1 | F134: 0 | G134: 0.524 | H134: -2.318 | I134: -2.842 | J134: 6.441 | K134: 0 | L134: 6.441 | M134: 0.911 | N134: -1.517 | O134: -0.606 | P134: -7.047 | Q134: -199.092 | R134: 4.07 | S134: -93.8 | T134: -89.73 | U134: 109.361
A135: 133 | B135: 0.015 | C135: -0.01 | D135: 0.6 | E135: 1 | F135: -0.8 | G135: 0.524 | H135: -2.318 | I135: -2.842 | J135: 7.161 | K135: -17.781 | L135: -10.62 | M135: 1.013 | N135: -1.687 | O135: -0.674 | P135: 9.947 | Q135: -199.092 | R135: 4.07 | S135: -93.8 | T135: -89.73 | U135: 109.361
A136: 134 | B136: 0.015 | C136: -0.01 | D136: 0.6 | E136: 1 | F136: -1.5 | G136: 0.524 | H136: -2.318 | I136: -2.842 | J136: 7.791 | K136: -33.34 | L136: -25.549 | M136: 1.102 | N136: -1.835 | O136: -0.733 | P136: 24.816 | Q136: -199.092 | R136: 4.07 | S136: -93.8 | T136: -89.73 | U136: 109.361
A137: 135 | B137: 0.015 | C137: 0.01 | D137: 0.05 | E137: 0 | F137: 0 | G137: -0.044 | H137: -1.594 | I137: -1.55 | J137: -1.416 | K137: 0 | L137: -1.416 | M137: -0.2 | N137: 0.333 | O137: 0.133 | P137: 1.549 | Q137: 15.801 | R137: -0.323 | S137: 7.444 | T137: 7.121 | U137: -8.679
A138: 136 | B138: 0.015 | C138: 0.01 | D138: 0.05 | E138: 0 | F138: -0.8 | G138: -0.044 | H138: -1.594 | I138: -1.55 | J138: -2.135 | K138: 17.781 | L138: 15.646 | M138: -0.302 | N138: 0.503 | O138: 0.201 | P138: -15.445 | Q138: 15.801 | R138: -0.323 | S138: 7.444 | T138: 7.121 | U138: -8.679
A139: 137 | B139: 0.015 | C139: 0.01 | D139: 0.05 | E139: 0 | F139: -1.5 | G139: -0.044 | H139: -1.594 | I139: -1.55 | J139: -2.765 | K139: 33.34 | L139: 30.575 | M139: -0.391 | N139: 0.651 | O139: 0.26 | P139: -30.315 | Q139: 15.801 | R139: -0.323 | S139: 7.444 | T139: 7.121 | U139: -8.679
A140: 138 | B140: 0.015 | C140: 0.01 | D140: 0.05 | E140: 0.3 | F140: 0 | G140: -0.044 | H140: 4.839 | I140: 4.882 | J140: -1.146 | K140: 0 | L140: -1.146 | M140: -0.162 | N140: 0.27 | O140: 0.108 | P140: 1.254 | Q140: 15.801 | R140: -0.323 | S140: 7.444 | T140: 7.121 | U140: -8.679
A141: 139 | B141: 0.015 | C141: 0.01 | D141: 0.05 | E141: 0.3 | F141: -0.8 | G141: -0.044 | H141: 4.839 | I141: 4.882 | J141: -1.866 | K141: 17.781 | L141: 15.916 | M141: -0.264 | N141: 0.439 | O141: 0.176 | P141: -15.74 | Q141: 15.801 | R141: -0.323 | S141: 7.444 | T141: 7.121 | U141: -8.679
A142: 140 | B142: 0.015 | C142: 0.01 | D142: 0.05 | E142: 0.3 | F142: -1.5 | G142: -0.044 | H142: 4.839 | I142: 4.882 | J142: -2.495 | K142: 33.34 | L142: 30.845 | M142: -0.353 | N142: 0.588 | O142: 0.235 | P142: -30.61 | Q142: 15.801 | R142: -0.323 | S142: 7.444 | T142: 7.121 | U142: -8.679
A143: 141 | B143: 0.015 | C143: 0.01 | D143: 0.05 | E143: 1 | F143: 0 | G143: -0.044 | H143: 19.848 | I143: 19.891 | J143: -0.516 | K143: 0 | L143: -0.516 | M143: -0.073 | N143: 0.122 | O143: 0.049 | P143: 0.565 | Q143: 15.801 | R143: -0.323 | S143: 7.444 | T143: 7.121 | U143: -8.679
A144: 142 | B144: 0.015 | C144: 0.01 | D144: 0.05 | E144: 1 | F144: -0.8 | G144: -0.044 | H144: 19.848 | I144: 19.891 | J144: -1.236 | K144: 17.781 | L144: 16.545 | M144: -0.175 | N144: 0.291 | O144: 0.116 | P144: -16.429 | Q144: 15.801 | R144: -0.323 | S144: 7.444 | T144: 7.121 | U144: -8.679
A145: 143 | B145: 0.015 | C145: 0.01 | D145: 0.05 | E145: 1 | F145: -1.5 | G145: -0.044 | H145: 19.848 | I145: 19.891 | J145: -1.866 | K145: 33.34 | L145: 31.474 | M145: -0.264 | N145: 0.439 | O145: 0.176 | P145: -31.299 | Q145: 15.801 | R145: -0.323 | S145: 7.444 | T145: 7.121 | U145: -8.679
A146: 144 | B146: 0.015 | C146: 0.01 | D146: 0.2 | E146: 0 | F146: 0 | G146: -0.175 | H146: -6.374 | I146: -6.2 | J146: -2.604 | K146: 0 | L146: -2.604 | M146: -0.368 | N146: 0.613 | O146: 0.245 | P146: 2.849 | Q146: 55.303 | R146: -1.13 | S146: 26.055 | T146: 24.925 | U146: -30.378
A147: 145 | B147: 0.015 | C147: 0.01 | D147: 0.2 | E147: 0 | F147: -0.8 | G147: -0.175 | H147: -6.374 | I147: -6.2 | J147: -3.324 | K147: 17.781 | L147: 14.457 | M147: -0.47 | N147: 0.783 | O147: 0.313 | P147: -14.145 | Q147: 55.303 | R147: -1.13 | S147: 26.055 | T147: 24.925 | U147: -30.378
A148: 146 | B148: 0.015 | C148: 0.01 | D148: 0.2 | E148: 0 | F148: -1.5 | G148: -0.175 | H148: -6.374 | I148: -6.2 | J148: -3.953 | K148: 33.34 | L148: 29.386 | M148: -0.559 | N148: 0.931 | O148: 0.372 | P148: -29.014 | Q148: 55.303 | R148: -1.13 | S148: 26.055 | T148: 24.925 | U148: -30.378
A149: 147 | B149: 0.015 | C149: 0.01 | D149: 0.2 | E149: 0.3 | F149: 0 | G149: -0.175 | H149: 0.058 | I149: 0.233 | J149: -2.334 | K149: 0 | L149: -2.334 | M149: -0.33 | N149: 0.55 | O149: 0.22 | P149: 2.554 | Q149: 55.303 | R149: -1.13 | S149: 26.055 | T149: 24.925 | U149: -30.378
A150: 148 | B150: 0.015 | C150: 0.01 | D150: 0.2 | E150: 0.3 | F150: -0.8 | G150: -0.175 | H150: 0.058 | I150: 0.233 | J150: -3.054 | K150: 17.781 | L150: 14.727 | M150: -0.432 | N150: 0.719 | O150: 0.287 | P150: -14.44 | Q150: 55.303 | R150: -1.13 | S150: 26.055 | T150: 24.925 | U150: -30.378
A151: 149 | B151: 0.015 | C151: 0.01 | D151: 0.2 | E151: 0.3 | F151: -1.5 | G151: -0.175 | H151: 0.058 | I151: 0.233 | J151: -3.684 | K151: 33.34 | L151: 29.656 | M151: -0.521 | N151: 0.868 | O151: 0.347 | P151: -29.31 | Q151: 55.303 | R151: -1.13 | S151: 26.055 | T151: 24.925 | U151: -30.378
A152: 150 | B152: 0.015 | C152: 0.01 | D152: 0.2 | E152: 1 | F152: 0 | G152: -0.175 | H152: 15.067 | I152: 15.241 | J152: -1.705 | K152: 0 | L152: -1.705 | M152: -0.241 | N152: 0.402 | O152: 0.16 | P152: 1.865 | Q152: 55.303 | R152: -1.13 | S152: 26.055 | T152: 24.925 | U152: -30.378
A153: 151 | B153: 0.015 | C153: 0.01 | D153: 0.2 | E153: 1 | F153: -0.8 | G153: -0.175 | H153: 15.067 | I153: 15.241 | J153: -2.424 | K153: 17.781 | L153: 15.357 | M153: -0.343 | N153: 0.571 | O153: 0.228 | P153: -15.129 | Q153: 55.303 | R153: -1.13 | S153: 26.055 | T153: 24.925 | U153: -30.378
A154: 152 | B154: 0.015 | C154: 0.01 | D154: 0.2 | E154: 1 | F154: -1.5 | G154: -0.175 | H154: 15.067 | I154: 15.241 | J154: -3.054 | K154: 33.34 | L154: 30.286 | M154: -0.432 | N154: 0.719 | O154: 0.287 | P154: -29.998 | Q154: 55.303 | R154: -1.13 | S154: 26.055 | T154: 24.925 | U154: -30.378
A155: 153 | B155: 0.015 | C155: 0.01 | D155: 0.6 | E155: 0 | F155: 0 | G155: -0.524 | H155: -19.123 | I155: -18.599 | J155: -4.744 | K155: 0 | L155: -4.744 | M155: -0.671 | N155: 1.117 | O155: 0.446 | P155: 5.19 | Q155: 124.432 | R155: -2.544 | S155: 58.625 | T155: 56.081 | U155: -68.351
A156: 154 | B156: 0.015 | C156: 0.01 | D156: 0.6 | E156: 0 | F156: -0.8 | G156: -0.524 | H156: -19.123 | I156: -18.599 | J156: -5.463 | K156: 17.781 | L156: 12.318 | M156: -0.773 | N156: 1.287 | O156: 0.514 | P156: -11.804 | Q156: 124.432 | R156: -2.544 | S156: 58.625 | T156: 56.081 | U156: -68.351
A157: 155 | B157: 0.015 | C157: 0.01 | D157: 0.6 | E157: 0 | F157: -1.5 | G157: -0.524 | H157: -19.123 | I157: -18.599 | J157: -6.093 | K157: 33.34 | L157: 27.247 | M157: -0.862 | N157: 1.435 | O157: 0.573 | P157: -26.674 | Q157: 124.432 | R157: -2.544 | S157: 58.625 | T157: 56.081 | U157: -68.351
A158: 156 | B158: 0.015 | C158: 0.01 | D158: 0.6 | E158: 0.3 | F158: 0 | G158: -0.524 | H158: -12.691 | I158: -12.167 | J158: -4.474 | K158: 0 | L158: -4.474 | M158: -0.633 | N158: 1.054 | O158: 0.421 | P158: 4.895 | Q158: 124.432 | R158: -2.544 | S158: 58.625 | T158: 56.081 | U158: -68.351
A159: 157 | B159: 0.015 | C159: 0.01 | D159: 0.6 | E159: 0.3 | F159: -0.8 | G159: -0.524 | H159: -12.691 | I159: -12.167 | J159: -5.193 | K159: 17.781 | L159: 12.588 | M159: -0.735 | N159: 1.223 | O159: 0.489 | P159: -12.099 | Q159: 124.432 | R159: -2.544 | S159: 58.625 | T159: 56.081 | U159: -68.351
A160: 158 | B160: 0.015 | C160: 0.01 | D160: 0.6 | E160: 0.3 | F160: -1.5 | G160: -0.524 | H160: -12.691 | I160: -12.167 | J160: -5.823 | K160: 33.34 | L160: 27.517 | M160: -0.824 | N160: 1.371 | O160: 0.548 | P160: -26.969 | Q160: 124.432 | R160: -2.544 | S160: 58.625 | T160: 56.081 | U160: -68.351
A161: 159 | B161: 0.015 | C161: 0.01 | D161: 0.6 | E161: 1 | F161: 0 | G161: -0.524 | H161: 2.318 | I161: 2.842 | J161: -3.844 | K161: 0 | L161: -3.844 | M161: -0.544 | N161: 0.905 | O161: 0.362 | P161: 4.206 | Q161: 124.432 | R161: -2.544 | S161: 58.625 | T161: 56.081 | U161: -68.351
A162: 160 | B162: 0.015 | C162: 0.01 | D162: 0.6 | E162: 1 | F162: -0.8 | G162: -0.524 | H162: 2.318 | I162: 2.842 | J162: -4.564 | K162: 17.781 | L162: 13.218 | M162: -0.646 | N162: 1.075 | O162: 0.429 | P162: -12.788 | Q162: 124.432 | R162: -2.544 | S162: 58.625 | T162: 56.081 | U162: -68.351
A163: 161 | B163: 0.015 | C163: 0.01 | D163: 0.6 | E163: 1 | F163: -1.5 | G163: -0.524 | H163: 2.318 | I163: 2.842 | J163: -5.193 | K163: 33.34 | L163: 28.146 | M163: -0.735 | N163: 1.223 | O163: 0.489 | P163: -27.658 | Q163: 124.432 | R163: -2.544 | S163: 58.625 | T163: 56.081 | U163: -68.351
A164: 162 | B164: 0.02 | C164: -0.02 | D164: 0.05 | E164: 0 | F164: 0 | G164: 0.087 | H164: 3.187 | I164: 3.1 | J164: 3.687 | K164: 0 | L164: 3.687 | M164: 0.521 | N164: -0.868 | O164: -0.347 | P164: -4.033 | Q164: -44.71 | R164: 0.888 | S164: -21.12 | T164: -20.231 | U164: 24.478
A165: 163 | B165: 0.02 | C165: -0.02 | D165: 0.05 | E165: 0 | F165: -0.8 | G165: 0.087 | H165: 3.187 | I165: 3.1 | J165: 5.126 | K165: -35.562 | L165: -30.437 | M165: 0.725 | N165: -1.207 | O165: -0.482 | P165: 29.954 | Q165: -44.71 | R165: 0.888 | S165: -21.12 | T165: -20.231 | U165: 24.478
A166: 164 | B166: 0.02 | C166: -0.02 | D166: 0.05 | E166: 0 | F166: -1.5 | G166: 0.087 | H166: 3.187 | I166: 3.1 | J166: 6.385 | K166: -66.68 | L166: -60.295 | M166: 0.903 | N166: -1.504 | O166: -0.601 | P166: 59.694 | Q166: -44.71 | R166: 0.888 | S166: -21.12 | T166: -20.231 | U166: 24.478
A167: 165 | B167: 0.02 | C167: -0.02 | D167: 0.05 | E167: 0.3 | F167: 0 | G167: 0.087 | H167: -9.678 | I167: -9.765 | J167: 3.147 | K167: 0 | L167: 3.147 | M167: 0.445 | N167: -0.741 | O167: -0.296 | P167: -3.443 | Q167: -44.71 | R167: 0.888 | S167: -21.12 | T167: -20.231 | U167: 24.478
A168: 166 | B168: 0.02 | C168: -0.02 | D168: 0.05 | E168: 0.3 | F168: -0.8 | G168: 0.087 | H168: -9.678 | I168: -9.765 | J168: 4.586 | K168: -35.562 | L168: -30.976 | M168: 0.649 | N168: -1.08 | O168: -0.431 | P168: 30.545 | Q168: -44.71 | R168: 0.888 | S168: -21.12 | T168: -20.231 | U168: 24.478
A169: 167 | B169: 0.02 | C169: -0.02 | D169: 0.05 | E169: 0.3 | F169: -1.5 | G169: 0.087 | H169: -9.678 | I169: -9.765 | J169: 5.845 | K169: -66.68 | L169: -60.834 | M169: 0.827 | N169: -1.377 | O169: -0.55 | P169: 60.284 | Q169: -44.71 | R169: 0.888 | S169: -21.12 | T169: -20.231 | U169: 24.478
A170: 168 | B170: 0.02 | C170: -0.02 | D170: 0.05 | E170: 1 | F170: 0 | G170: 0.087 | H170: -39.695 | I170: -39.782 | J170: 1.888 | K170: 0 | L170: 1.888 | M170: 0.267 | N170: -0.445 | O170: -0.178 | P170: -2.065 | Q170: -44.71 | R170: 0.888 | S170: -21.12 | T170: -20.231 | U170: 24.478
A171: 169 | B171: 0.02 | C171: -0.02 | D171: 0.05 | E171: 1 | F171: -0.8 | G171: 0.087 | H171: -39.695 | I171: -39.782 | J171: 3.327 | K171: -35.562 | L171: -32.236 | M171: 0.471 | N171: -0.784 | O171: -0.313 | P171: 31.923 | Q171: -44.71 | R171: 0.888 | S171: -21.12 | T171: -20.231 | U171: 24.478
A172: 170 | B172: 0.02 | C172: -0.02 | D172: 0.05 | E172: 1 | F172: -1.5 | G172: 0.087 | H172: -39.695 | I172: -39.782 | J172: 4.586 | K172: -66.68 | L172: -62.093 | M172: 0.649 | N172: -1.08 | O172: -0.431 | P172: 61.662 | Q172: -44.71 | R172: 0.888 | S172: -21.12 | T172: -20.231 | U172: 24.478
A173: 171 | B173: 0.02 | C173: -0.02 | D173: 0.2 | E173: 0 | F173: 0 | G173: 0.349 | H173: 12.749 | I173: 12.4 | J173: 7.394 | K173: 0 | L173: 7.394 | M173: 1.046 | N173: -1.741 | O173: -0.696 | P173: -8.089 | Q173: -191.925 | R173: 3.814 | S173: -90.661 | T173: -86.847 | U173: 105.078
A174: 172 | B174: 0.02 | C174: -0.02 | D174: 0.2 | E174: 0 | F174: -0.8 | G174: 0.349 | H174: 12.749 | I174: 12.4 | J174: 8.833 | K174: -35.562 | L174: -26.73 | M174: 1.249 | N174: -2.08 | O174: -0.831 | P174: 25.899 | Q174: -191.925 | R174: 3.814 | S174: -90.661 | T174: -86.847 | U174: 105.078
A175: 173 | B175: 0.02 | C175: -0.02 | D175: 0.2 | E175: 0 | F175: -1.5 | G175: 0.349 | H175: 12.749 | I175: 12.4 | J175: 10.092 | K175: -66.68 | L175: -56.587 | M175: 1.428 | N175: -2.377 | O175: -0.949 | P175: 55.638 | Q175: -191.925 | R175: 3.814 | S175: -90.661 | T175: -86.847 | U175: 105.078
A176: 174 | B176: 0.02 | C176: -0.02 | D176: 0.2 | E176: 0.3 | F176: 0 | G176: 0.349 | H176: -0.116 | I176: -0.465 | J176: 6.854 | K176: 0 | L176: 6.854 | M176: 0.969 | N176: -1.614 | O176: -0.645 | P176: -7.499 | Q176: -191.925 | R176: 3.814 | S176: -90.661 | T176: -86.847 | U176: 105.078
A177: 175 | B177: 0.02 | C177: -0.02 | D177: 0.2 | E177: 0.3 | F177: -0.8 | G177: 0.349 | H177: -0.116 | I177: -0.465 | J177: 8.293 | K177: -35.562 | L177: -27.269 | M177: 1.173 | N177: -1.953 | O177: -0.78 | P177: 26.489 | Q177: -191.925 | R177: 3.814 | S177: -90.661 | T177: -86.847 | U177: 105.078
A178: 176 | B178: 0.02 | C178: -0.02 | D178: 0.2 | E178: 0.3 | F178: -1.5 | G178: 0.349 | H178: -0.116 | I178: -0.465 | J178: 9.552 | K178: -66.68 | L178: -57.127 | M178: 1.351 | N178: -2.25 | O178: -0.899 | P178: 56.228 | Q178: -191.925 | R178: 3.814 | S178: -90.661 | T178: -86.847 | U178: 105.078
A179: 177 | B179: 0.02 | C179: -0.02 | D179: 0.2 | E179: 1 | F179: 0 | G179: 0.349 | H179: -30.134 | I179: -30.483 | J179: 5.595 | K179: 0 | L179: 5.595 | M179: 0.791 | N179: -1.318 | O179: -0.526 | P179: -6.121 | Q179: -191.925 | R179: 3.814 | S179: -90.661 | T179: -86.847 | U179: 105.078
A180: 178 | B180: 0.02 | C180: -0.02 | D180: 0.2 | E180: 1 | F180: -0.8 | G180: 0.349 | H180: -30.134 | I180: -30.483 | J180: 7.034 | K180: -35.562 | L180: -28.528 | M180: 0.995 | N180: -1.657 | O180: -0.662 | P180: 27.867 | Q180: -191.925 | R180: 3.814 | S180: -90.661 | T180: -86.847 | U180: 105.078
A181: 179 | B181: 0.02 | C181: -0.02 | D181: 0.2 | E181: 1 | F181: -1.5 | G181: 0.349 | H181: -30.134 | I181: -30.483 | J181: 8.293 | K181: -66.68 | L181: -58.386 | M181: 1.173 | N181: -1.953 | O181: -0.78 | P181: 57.606 | Q181: -191.925 | R181: 3.814 | S181: -90.661 | T181: -86.847 | U181: 105.078
A182: 180 | B182: 0.02 | C182: -0.02 | D182: 0.6 | E182: 0 | F182: 0 | G182: 1.047 | H182: 38.246 | I182: 37.199 | J182: 18.758 | K182: 0 | L182: 18.758 | M182: 2.653 | N182: -4.418 | O182: -1.765 | P182: -20.523 | Q182: -680.463 | R182: 13.522 | S182: -321.436 | T182: -307.914 | U182: 372.549
A183: 181 | B183: 0.02 | C183: -0.02 | D183: 0.6 | E183: 0 | F183: -0.8 | G183: 1.047 | H183: 38.246 | I183: 37.199 | J183: 20.197 | K183: -35.562 | L183: -15.365 | M183: 2.857 | N183: -4.757 | O183: -1.9 | P183: 13.465 | Q183: -680.463 | R183: 13.522 | S183: -321.436 | T183: -307.914 | U183: 372.549
A184: 182 | B184: 0.02 | C184: -0.02 | D184: 0.6 | E184: 0 | F184: -1.5 | G184: 1.047 | H184: 38.246 | I184: 37.199 | J184: 21.456 | K184: -66.68 | L184: -45.223 | M184: 3.035 | N184: -5.054 | O184: -2.019 | P184: 43.204 | Q184: -680.463 | R184: 13.522 | S184: -321.436 | T184: -307.914 | U184: 372.549
A185: 183 | B185: 0.02 | C185: -0.02 | D185: 0.6 | E185: 0.3 | F185: 0 | G185: 1.047 | H185: 25.381 | I185: 24.334 | J185: 18.218 | K185: 0 | L185: 18.218 | M185: 2.577 | N185: -4.291 | O185: -1.714 | P185: -19.932 | Q185: -680.463 | R185: 13.522 | S185: -321.436 | T185: -307.914 | U185: 372.549
A186: 184 | B186: 0.02 | C186: -0.02 | D186: 0.6 | E186: 0.3 | F186: -0.8 | G186: 1.047 | H186: 25.381 | I186: 24.334 | J186: 19.658 | K186: -35.562 | L186: -15.905 | M186: 2.781 | N186: -4.63 | O186: -1.849 | P186: 14.055 | Q186: -680.463 | R186: 13.522 | S186: -321.436 | T186: -307.914 | U186: 372.549
A187: 185 | B187: 0.02 | C187: -0.02 | D187: 0.6 | E187: 0.3 | F187: -1.5 | G187: 1.047 | H187: 25.381 | I187: 24.334 | J187: 20.917 | K187: -66.68 | L187: -45.763 | M187: 2.959 | N187: -4.926 | O187: -1.968 | P187: 43.795 | Q187: -680.463 | R187: 13.522 | S187: -321.436 | T187: -307.914 | U187: 372.549
A188: 186 | B188: 0.02 | C188: -0.02 | D188: 0.6 | E188: 1 | F188: 0 | G188: 1.047 | H188: -4.636 | I188: -5.684 | J188: 16.959 | K188: 0 | L188: 16.959 | M188: 2.399 | N188: -3.994 | O188: -1.595 | P188: -18.555 | Q188: -680.463 | R188: 13.522 | S188: -321.436 | T188: -307.914 | U188: 372.549
A189: 187 | B189: 0.02 | C189: -0.02 | D189: 0.6 | E189: 1 | F189: -0.8 | G189: 1.047 | H189: -4.636 | I189: -5.684 | J189: 18.398 | K189: -35.562 | L189: -17.164 | M189: 2.602 | N189: -4.333 | O189: -1.731 | P189: 15.433 | Q189: -680.463 | R189: 13.522 | S189: -321.436 | T189: -307.914 | U189: 372.549
A190: 188 | B190: 0.02 | C190: -0.02 | D190: 0.6 | E190: 1 | F190: -1.5 | G190: 1.047 | H190: -4.636 | I190: -5.684 | J190: 19.658 | K190: -66.68 | L190: -47.022 | M190: 2.781 | N190: -4.63 | O190: -1.849 | P190: 45.173 | Q190: -680.463 | R190: 13.522 | S190: -321.436 | T190: -307.914 | U190: 372.549
A191: 189 | B191: 0.02 | C191: -0.01 | D191: 0.05 | E191: 0 | F191: 0 | G191: 0.044 | H191: 1.594 | I191: 1.55 | J191: 1.666 | K191: 0 | L191: 1.666 | M191: 0.236 | N191: -0.392 | O191: -0.157 | P191: -1.823 | Q191: -21.81 | R191: 0.433 | S191: -10.302 | T191: -9.869 | U191: 11.941
A192: 190 | B192: 0.02 | C192: -0.01 | D192: 0.05 | E192: 0 | F192: -0.8 | G192: 0.044 | H192: 1.594 | I192: 1.55 | J192: 2.386 | K192: -17.781 | L192: -15.396 | M192: 0.337 | N192: -0.562 | O192: -0.224 | P192: 15.171 | Q192: -21.81 | R192: 0.433 | S192: -10.302 | T192: -9.869 | U192: 11.941
A193: 191 | B193: 0.02 | C193: -0.01 | D193: 0.05 | E193: 0 | F193: -1.5 | G193: 0.044 | H193: 1.594 | I193: 1.55 | J193: 3.015 | K193: -33.34 | L193: -30.325 | M193: 0.426 | N193: -0.71 | O193: -0.284 | P193: 30.041 | Q193: -21.81 | R193: 0.433 | S193: -10.302 | T193: -9.869 | U193: 11.941
A194: 192 | B194: 0.02 | C194: -0.01 | D194: 0.05 | E194: 0.3 | F194: 0 | G194: 0.044 | H194: -4.839 | I194: -4.882 | J194: 1.396 | K194: 0 | L194: 1.396 | M194: 0.197 | N194: -0.329 | O194: -0.131 | P194: -1.528 | Q194: -21.81 | R194: 0.433 | S194: -10.302 | T194: -9.869 | U194: 11.941
A195: 193 | B195: 0.02 | C195: -0.01 | D195: 0.05 | E195: 0.3 | F195: -0.8 | G195: 0.044 | H195: -4.839 | I195: -4.882 | J195: 2.116 | K195: -17.781 | L195: -15.665 | M195: 0.299 | N195: -0.498 | O195: -0.199 | P195: 15.466 | Q195: -21.81 | R195: 0.433 | S195: -10.302 | T195: -9.869 | U195: 11.941
A196: 194 | B196: 0.02 | C196: -0.01 | D196: 0.05 | E196: 0.3 | F196: -1.5 | G196: 0.044 | H196: -4.839 | I196: -4.882 | J196: 2.745 | K196: -33.34 | L196: -30.594 | M196: 0.388 | N196: -0.647 | O196: -0.258 | P196: 30.336 | Q196: -21.81 | R196: 0.433 | S196: -10.302 | T196: -9.869 | U196: 11.941
A197: 195 | B197: 0.02 | C197: -0.01 | D197: 0.05 | E197: 1 | F197: 0 | G197: 0.044 | H197: -19.848 | I197: -19.891 | J197: 0.767 | K197: 0 | L197: 0.767 | M197: 0.108 | N197: -0.181 | O197: -0.072 | P197: -0.839 | Q197: -21.81 | R197: 0.433 | S197: -10.302 | T197: -9.869 | U197: 11.941
A198: 196 | B198: 0.02 | C198: -0.01 | D198: 0.05 | E198: 1 | F198: -0.8 | G198: 0.044 | H198: -19.848 | I198: -19.891 | J198: 1.486 | K198: -17.781 | L198: -16.295 | M198: 0.21 | N198: -0.35 | O198: -0.14 | P198: 16.155 | Q198: -21.81 | R198: 0.433 | S198: -10.302 | T198: -9.869 | U198: 11.941
A199: 197 | B199: 0.02 | C199: -0.01 | D199: 0.05 | E199: 1 | F199: -1.5 | G199: 0.044 | H199: -19.848 | I199: -19.891 | J199: 2.116 | K199: -33.34 | L199: -31.224 | M199: 0.299 | N199: -0.498 | O199: -0.199 | P199: 31.025 | Q199: -21.81 | R199: 0.433 | S199: -10.302 | T199: -9.869 | U199: 11.941
A200: 198 | B200: 0.02 | C200: -0.01 | D200: 0.2 | E200: 0 | F200: 0 | G200: 0.175 | H200: 6.374 | I200: 6.2 | J200: 3.254 | K200: 0 | L200: 3.254 | M200: 0.46 | N200: -0.766 | O200: -0.306 | P200: -3.56 | Q200: -87.239 | R200: 1.734 | S200: -41.21 | T200: -39.476 | U200: 47.763
... 44 more rows

Sheet eliminate_OLA_results (hidden)
B1: prob_crisis | C1: OLA_fraction | D1: OLA_effect | E1: direct_revenues_total | F1: direct_outlays_total | G1: direct_primary_deficit | H1: noncrisis_revenues_gdp_growth | I1: noncrisis_revenues_financing_mix | J1: noncrisis_revenues_total | K1: noncrisis_outlays_noninterest | L1: noncrisis_outlays_interest | M1: noncrisis_outlays_total | N1: noncrisis_primary_deficit | O1: crisis_revenues_total | P1: crisis_outlays_noninterest | Q1: crisis_outlays_interest | R1: crisis_outlays_total | S1: crisis_primary_deficit
A2: 0 | B2: 0.01 | C2: 0 | D2: 0.1 | E2: 5.819 | F2: 19.505 | G2: 13.686 | H2: 0 | I2: 0 | J2: 0 | K2: 0 | L2: 0 | M2: 0 | N2: 0 | O2: 22.438 | P2: -0.471 | Q2: 10.544 | R2: 10.072 | S2: -12.366
A3: 1 | B3: 0.01 | C3: 0 | D3: 0 | E3: 5.819 | F3: 19.505 | G3: 13.686 | H3: 0 | I3: 0 | J3: 0 | K3: 0 | L3: 0 | M3: 0 | N3: 0 | O3: 0 | P3: 0 | Q3: 0 | R3: 0 | S3: 0
A4: 2 | B4: 0.01 | C4: 0 | D4: -0.1 | E4: 5.819 | F4: 19.505 | G4: 13.686 | H4: 0 | I4: 0 | J4: 0 | K4: 0 | L4: 0 | M4: 0 | N4: 0 | O4: -22.438 | P4: 0.471 | Q4: -10.544 | R4: -10.072 | S4: 12.366
A5: 3 | B5: 0.01 | C5: 0.333 | D5: 0.1 | E5: 5.819 | F5: 19.505 | G5: 13.686 | H5: 0 | I5: 0 | J5: 0 | K5: 0 | L5: 0 | M5: 0 | N5: 0 | O5: -63.717 | P5: 3.945 | Q5: -2.407 | R5: 1.538 | S5: 65.255
A6: 4 | B6: 0.01 | C6: 0.333 | D6: 0 | E6: 5.819 | F6: 19.505 | G6: 13.686 | H6: 0 | I6: 0 | J6: 0 | K6: 0 | L6: 0 | M6: 0 | N6: 0 | O6: -95.728 | P6: 4.907 | Q6: -14.39 | R6: -9.483 | S6: 86.245
A7: 5 | B7: 0.01 | C7: 0.333 | D7: -0.1 | E7: 5.819 | F7: 19.505 | G7: 13.686 | H7: 0 | I7: 0 | J7: 0 | K7: 0 | L7: 0 | M7: 0 | N7: 0 | O7: -127.739 | P7: 5.87 | Q7: -26.373 | R7: -20.503 | S7: 107.236
A8: 6 | B8: 0.01 | C8: 0.5 | D8: 0.1 | E8: 5.819 | F8: 19.505 | G8: 13.686 | H8: 0 | I8: 0 | J8: 0 | K8: 0 | L8: 0 | M8: 0 | N8: 0 | O8: -106.794 | P8: 6.154 | Q8: -8.883 | R8: -2.729 | S8: 104.065
A9: 7 | B9: 0.01 | C9: 0.5 | D9: 0 | E9: 5.819 | F9: 19.505 | G9: 13.686 | H9: 0 | I9: 0 | J9: 0 | K9: 0 | L9: 0 | M9: 0 | N9: 0 | O9: -143.592 | P9: 7.361 | Q9: -21.585 | R9: -14.224 | S9: 129.368
A10: 8 | B10: 0.01 | C10: 0.5 | D10: -0.1 | E10: 5.819 | F10: 19.505 | G10: 13.686 | H10: 0 | I10: 0 | J10: 0 | K10: 0 | L10: 0 | M10: 0 | N10: 0 | O10: -180.389 | P10: 8.569 | Q10: -34.288 | R10: -25.719 | S10: 154.67
A11: 9 | B11: 0.015 | C11: 0 | D11: 0.1 | E11: 5.819 | F11: 19.505 | G11: 13.686 | H11: 0 | I11: 0 | J11: 0 | K11: 0 | L11: 0 | M11: 0 | N11: 0 | O11: 33.182 | P11: -0.678 | Q11: 15.633 | R11: 14.955 | S11: -18.227
A12: 10 | B12: 0.015 | C12: 0 | D12: 0 | E12: 5.819 | F12: 19.505 | G12: 13.686 | H12: 0 | I12: 0 | J12: 0 | K12: 0 | L12: 0 | M12: 0 | N12: 0 | O12: 0 | P12: 0 | Q12: 0 | R12: 0 | S12: 0
A13: 11 | B13: 0.015 | C13: 0 | D13: -0.1 | E13: 5.819 | F13: 19.505 | G13: 13.686 | H13: 0 | I13: 0 | J13: 0 | K13: 0 | L13: 0 | M13: 0 | N13: 0 | O13: -33.182 | P13: 0.678 | Q13: -15.633 | R13: -14.955 | S13: 18.227
A14: 12 | B14: 0.015 | C14: 0.333 | D14: 0.1 | E14: 5.819 | F14: 19.505 | G14: 13.686 | H14: 0 | I14: 0 | J14: 0 | K14: 0 | L14: 0 | M14: 0 | N14: 0 | O14: -94.493 | P14: 5.827 | Q14: -3.626 | R14: 2.202 | S14: 96.695
A15: 13 | B15: 0.015 | C15: 0.333 | D15: 0 | E15: 5.819 | F15: 19.505 | G15: 13.686 | H15: 0 | I15: 0 | J15: 0 | K15: 0 | L15: 0 | M15: 0 | N15: 0 | O15: -141.861 | P15: 7.229 | Q15: -21.399 | R15: -14.17 | S15: 127.691
A16: 14 | B16: 0.015 | C16: 0.333 | D16: -0.1 | E16: 5.819 | F16: 19.505 | G16: 13.686 | H16: 0 | I16: 0 | J16: 0 | K16: 0 | L16: 0 | M16: 0 | N16: 0 | O16: -189.229 | P16: 8.63 | Q16: -39.172 | R16: -30.542 | S16: 158.687
A17: 15 | B17: 0.015 | C17: 0.5 | D17: 0.1 | E17: 5.819 | F17: 19.505 | G17: 13.686 | H17: 0 | I17: 0 | J17: 0 | K17: 0 | L17: 0 | M17: 0 | N17: 0 | O17: -158.331 | P17: 9.08 | Q17: -13.255 | R17: -4.175 | S17: 154.156
A18: 16 | B18: 0.015 | C18: 0.5 | D18: 0 | E18: 5.819 | F18: 19.505 | G18: 13.686 | H18: 0 | I18: 0 | J18: 0 | K18: 0 | L18: 0 | M18: 0 | N18: 0 | O18: -212.792 | P18: 10.843 | Q18: -32.098 | R18: -21.255 | S18: 191.537
A19: 17 | B19: 0.015 | C19: 0.5 | D19: -0.1 | E19: 5.819 | F19: 19.505 | G19: 13.686 | H19: 0 | I19: 0 | J19: 0 | K19: 0 | L19: 0 | M19: 0 | N19: 0 | O19: -267.253 | P19: 12.605 | Q19: -50.941 | R19: -38.336 | S19: 228.917
A20: 18 | B20: 0.02 | C20: 0 | D20: 0.1 | E20: 5.819 | F20: 19.505 | G20: 13.686 | H20: 0 | I20: 0 | J20: 0 | K20: 0 | L20: 0 | M20: 0 | N20: 0 | O20: 43.619 | P20: -0.867 | Q20: 20.605 | R20: 19.738 | S20: -23.881
A21: 19 | B21: 0.02 | C21: 0 | D21: 0 | E21: 5.819 | F21: 19.505 | G21: 13.686 | H21: 0 | I21: 0 | J21: 0 | K21: 0 | L21: 0 | M21: 0 | N21: 0 | O21: 0 | P21: 0 | Q21: 0 | R21: 0 | S21: 0
A22: 20 | B22: 0.02 | C22: 0 | D22: -0.1 | E22: 5.819 | F22: 19.505 | G22: 13.686 | H22: 0 | I22: 0 | J22: 0 | K22: 0 | L22: 0 | M22: 0 | N22: 0 | O22: -43.619 | P22: 0.867 | Q22: -20.605 | R22: -19.738 | S22: 23.881
A23: 21 | B23: 0.02 | C23: 0.333 | D23: 0.1 | E23: 5.819 | F23: 19.505 | G23: 13.686 | H23: 0 | I23: 0 | J23: 0 | K23: 0 | L23: 0 | M23: 0 | N23: 0 | O23: -124.571 | P23: 7.651 | Q23: -4.853 | R23: 2.798 | S23: 127.369
A24: 22 | B24: 0.02 | C24: 0.333 | D24: 0 | E24: 5.819 | F24: 19.505 | G24: 13.686 | H24: 0 | I24: 0 | J24: 0 | K24: 0 | L24: 0 | M24: 0 | N24: 0 | O24: -186.878 | P24: 9.464 | Q24: -28.286 | R24: -18.822 | S24: 168.056
A25: 23 | B25: 0.02 | C25: 0.333 | D25: -0.1 | E25: 5.819 | F25: 19.505 | G25: 13.686 | H25: 0 | I25: 0 | J25: 0 | K25: 0 | L25: 0 | M25: 0 | N25: 0 | O25: -249.185 | P25: 11.278 | Q25: -51.72 | R25: -40.442 | S25: 208.743
A26: 24 | B26: 0.02 | C26: 0.5 | D26: 0.1 | E26: 5.819 | F26: 19.505 | G26: 13.686 | H26: 0 | I26: 0 | J26: 0 | K26: 0 | L26: 0 | M26: 0 | N26: 0 | O26: -208.666 | P26: 11.91 | Q26: -17.581 | R26: -5.671 | S26: 202.995
A27: 25 | B27: 0.02 | C27: 0.5 | D27: 0 | E27: 5.819 | F27: 19.505 | G27: 13.686 | H27: 0 | I27: 0 | J27: 0 | K27: 0 | L27: 0 | M27: 0 | N27: 0 | O27: -280.317 | P27: 14.196 | Q27: -42.429 | R27: -28.233 | S27: 252.084
A28: 26 | B28: 0.02 | C28: 0.5 | D28: -0.1 | E28: 5.819 | F28: 19.505 | G28: 13.686 | H28: 0 | I28: 0 | J28: 0 | K28: 0 | L28: 0 | M28: 0 | N28: 0 | O28: -351.968 | P28: 16.483 | Q28: -67.277 | R28: -50.794 | S28: 301.174

Sheet repeal_ATR_results (hidden)
B1: prob_crisis | C1: ATR_effect | D1: housing_tax | E1: direct_revenues_total | F1: direct_outlays_total | G1: direct_primary_deficit | H1: noncrisis_revenues_total | I1: noncrisis_outlays_noninterest | J1: noncrisis_outlays_interest | K1: noncrisis_outlays_total | L1: noncrisis_primary_deficit | M1: crisis_revenues_total | N1: crisis_outlays_noninterest | O1: crisis_outlays_interest | P1: crisis_outlays_total | Q1: crisis_primary_deficit
A2: 0 | B2: 0.01 | C2: 0 | D2: -0.05 | E2: 0 | F2: 0 | G2: 0 | H2: -0.896 | I2: 0 | J2: 0 | K2: 0 | L2: 0.896 | M2: 0 | N2: 0 | O2: 0 | P2: 0 | Q2: 0
A3: 1 | B3: 0.01 | C3: 0 | D3: 0.04 | E3: 0 | F3: 0 | G3: 0 | H3: 0.717 | I3: 0 | J3: 0 | K3: 0 | L3: -0.717 | M3: 0 | N3: 0 | O3: 0 | P3: 0 | Q3: 0
A4: 2 | B4: 0.01 | C4: 0 | D4: 0.1 | E4: 0 | F4: 0 | G4: 0 | H4: 1.793 | I4: 0 | J4: 0 | K4: 0 | L4: -1.793 | M4: 0 | N4: 0 | O4: 0 | P4: 0 | Q4: 0
A5: 3 | B5: 0.01 | C5: 0.01 | D5: -0.05 | E5: 0.058 | F5: 0.485 | G5: 0.426 | H5: -0.896 | I5: 0 | J5: 0 | K5: 0 | L5: 0.896 | M5: -2.244 | N5: 0.047 | O5: -1.054 | P5: -1.007 | Q5: 1.237
A6: 4 | B6: 0.01 | C6: 0.01 | D6: 0.04 | E6: 0.058 | F6: 0.485 | G6: 0.426 | H6: 0.717 | I6: 0 | J6: 0 | K6: 0 | L6: -0.717 | M6: -2.244 | N6: 0.047 | O6: -1.054 | P6: -1.007 | Q6: 1.237
A7: 5 | B7: 0.01 | C7: 0.01 | D7: 0.1 | E7: 0.058 | F7: 0.485 | G7: 0.426 | H7: 1.793 | I7: 0 | J7: 0 | K7: 0 | L7: -1.793 | M7: -2.244 | N7: 0.047 | O7: -1.054 | P7: -1.007 | Q7: 1.237
A8: 6 | B8: 0.01 | C8: 0.02 | D8: -0.05 | E8: 0.116 | F8: 0.969 | G8: 0.853 | H8: -0.896 | I8: 0 | J8: 0 | K8: 0 | L8: 0.896 | M8: -4.488 | N8: 0.094 | O8: -2.109 | P8: -2.014 | Q8: 2.473
A9: 7 | B9: 0.01 | C9: 0.02 | D9: 0.04 | E9: 0.116 | F9: 0.969 | G9: 0.853 | H9: 0.717 | I9: 0 | J9: 0 | K9: 0 | L9: -0.717 | M9: -4.488 | N9: 0.094 | O9: -2.109 | P9: -2.014 | Q9: 2.473
A10: 8 | B10: 0.01 | C10: 0.02 | D10: 0.1 | E10: 0.116 | F10: 0.969 | G10: 0.853 | H10: 1.793 | I10: 0 | J10: 0 | K10: 0 | L10: -1.793 | M10: -4.488 | N10: 0.094 | O10: -2.109 | P10: -2.014 | Q10: 2.473
A11: 9 | B11: 0.015 | C11: 0 | D11: -0.05 | E11: 0 | F11: 0 | G11: 0 | H11: -0.896 | I11: 0 | J11: 0 | K11: 0 | L11: 0.896 | M11: 0 | N11: 0 | O11: 0 | P11: 0 | Q11: 0
A12: 10 | B12: 0.015 | C12: 0 | D12: 0.04 | E12: 0 | F12: 0 | G12: 0 | H12: 0.717 | I12: 0 | J12: 0 | K12: 0 | L12: -0.717 | M12: 0 | N12: 0 | O12: 0 | P12: 0 | Q12: 0
A13: 11 | B13: 0.015 | C13: 0 | D13: 0.1 | E13: 0 | F13: 0 | G13: 0 | H13: 1.793 | I13: 0 | J13: 0 | K13: 0 | L13: -1.793 | M13: 0 | N13: 0 | O13: 0 | P13: 0 | Q13: 0
A14: 12 | B14: 0.015 | C14: 0.01 | D14: -0.05 | E14: 0.058 | F14: 0.485 | G14: 0.426 | H14: -0.896 | I14: 0 | J14: 0 | K14: 0 | L14: 0.896 | M14: -3.318 | N14: 0.068 | O14: -1.563 | P14: -1.496 | Q14: 1.823
A15: 13 | B15: 0.015 | C15: 0.01 | D15: 0.04 | E15: 0.058 | F15: 0.485 | G15: 0.426 | H15: 0.717 | I15: 0 | J15: 0 | K15: 0 | L15: -0.717 | M15: -3.318 | N15: 0.068 | O15: -1.563 | P15: -1.496 | Q15: 1.823
A16: 14 | B16: 0.015 | C16: 0.01 | D16: 0.1 | E16: 0.058 | F16: 0.485 | G16: 0.426 | H16: 1.793 | I16: 0 | J16: 0 | K16: 0 | L16: -1.793 | M16: -3.318 | N16: 0.068 | O16: -1.563 | P16: -1.496 | Q16: 1.823
A17: 15 | B17: 0.015 | C17: 0.02 | D17: -0.05 | E17: 0.116 | F17: 0.969 | G17: 0.853 | H17: -0.896 | I17: 0 | J17: 0 | K17: 0 | L17: 0.896 | M17: -6.636 | N17: 0.136 | O17: -3.127 | P17: -2.991 | Q17: 3.645
A18: 16 | B18: 0.015 | C18: 0.02 | D18: 0.04 | E18: 0.116 | F18: 0.969 | G18: 0.853 | H18: 0.717 | I18: 0 | J18: 0 | K18: 0 | L18: -0.717 | M18: -6.636 | N18: 0.136 | O18: -3.127 | P18: -2.991 | Q18: 3.645
A19: 17 | B19: 0.015 | C19: 0.02 | D19: 0.1 | E19: 0.116 | F19: 0.969 | G19: 0.853 | H19: 1.793 | I19: 0 | J19: 0 | K19: 0 | L19: -1.793 | M19: -6.636 | N19: 0.136 | O19: -3.127 | P19: -2.991 | Q19: 3.645
A20: 18 | B20: 0.02 | C20: 0 | D20: -0.05 | E20: 0 | F20: 0 | G20: 0 | H20: -0.896 | I20: 0 | J20: 0 | K20: 0 | L20: 0.896 | M20: 0 | N20: 0 | O20: 0 | P20: 0 | Q20: 0
A21: 19 | B21: 0.02 | C21: 0 | D21: 0.04 | E21: 0 | F21: 0 | G21: 0 | H21: 0.717 | I21: 0 | J21: 0 | K21: 0 | L21: -0.717 | M21: 0 | N21: 0 | O21: 0 | P21: 0 | Q21: 0
A22: 20 | B22: 0.02 | C22: 0 | D22: 0.1 | E22: 0 | F22: 0 | G22: 0 | H22: 1.793 | I22: 0 | J22: 0 | K22: 0 | L22: -1.793 | M22: 0 | N22: 0 | O22: 0 | P22: 0 | Q22: 0
A23: 21 | B23: 0.02 | C23: 0.01 | D23: -0.05 | E23: 0.058 | F23: 0.485 | G23: 0.426 | H23: -0.896 | I23: 0 | J23: 0 | K23: 0 | L23: 0.896 | M23: -4.362 | N23: 0.087 | O23: -2.06 | P23: -1.974 | Q23: 2.388
A24: 22 | B24: 0.02 | C24: 0.01 | D24: 0.04 | E24: 0.058 | F24: 0.485 | G24: 0.426 | H24: 0.717 | I24: 0 | J24: 0 | K24: 0 | L24: -0.717 | M24: -4.362 | N24: 0.087 | O24: -2.06 | P24: -1.974 | Q24: 2.388
A25: 23 | B25: 0.02 | C25: 0.01 | D25: 0.1 | E25: 0.058 | F25: 0.485 | G25: 0.426 | H25: 1.793 | I25: 0 | J25: 0 | K25: 0 | L25: -1.793 | M25: -4.362 | N25: 0.087 | O25: -2.06 | P25: -1.974 | Q25: 2.388
A26: 24 | B26: 0.02 | C26: 0.02 | D26: -0.05 | E26: 0.116 | F26: 0.969 | G26: 0.853 | H26: -0.896 | I26: 0 | J26: 0 | K26: 0 | L26: 0.896 | M26: -8.724 | N26: 0.173 | O26: -4.121 | P26: -3.948 | Q26: 4.776
A27: 25 | B27: 0.02 | C27: 0.02 | D27: 0.04 | E27: 0.116 | F27: 0.969 | G27: 0.853 | H27: 0.717 | I27: 0 | J27: 0 | K27: 0 | L27: -0.717 | M27: -8.724 | N27: 0.173 | O27: -4.121 | P27: -3.948 | Q27: 4.776
A28: 26 | B28: 0.02 | C28: 0.02 | D28: 0.1 | E28: 0.116 | F28: 0.969 | G28: 0.853 | H28: 1.793 | I28: 0 | J28: 0 | K28: 0 | L28: -1.793 | M28: -8.724 | N28: 0.173 | O28: -4.121 | P28: -3.948 | Q28: 4.776
